Workbook

Sheet 附件1
A1: 附件1
A2: 2025年义务教育阶段公用经费转移支付资金安排表
AS3: 单位：万元
A4: 市、县（区）名称 | B4: 闽政[2016]16号省级补助比例 | C4: 原中央苏区县提高补助水平后省级补助比例（2011） | D4: 小学在校学生数 | E4: 初中在校学生数 | F4: 城乡义务教育生均公用经费 | L4: 小学不足100人按100人核定公用经费 | S4: 小学100-199人按200人核定公用经费 | Z4: 初中不足300人按300人核定公用经费 | AG4: 公办学校寄宿生公用经费 | AK4: 总计 | AL4: 省级以上承担 | AM4: 市县承担 | AN4: 已提前下达 | AP4: 本次下达资金
D5: 小计 | E5: 小计 | F5: 小学标准 | G5: 初中标准 | H5: 合计 | I5: 省级 | J5: 其中：原中央苏区县提高补助新增资金 | K5: 市县 | L5: 学校(教学点）数（个） | M5: 在校学生数（人） | N5: 不足100人小学按100人计算应有的在校生数（人） | O5: 100人以下学校按100人计算增加在校生数（人） | P5: 合计 | Q5: 省级 | R5: 市县 | S5: 学校数（个） | T5: 在校学生数（人） | U5: 100-199人小学按200人计算应有的在校生数（人） | V5: 100-199人学校按200人计算增加在校生数（人） | W5: 合计 | X5: 省级 | Y5: 市县 | Z5: 学校数（个） | AA5: 在校学生数（人） | AB5: 不足300人初中按300人计算应有的在校生数（人） | AC5: 300人以下学校按300人计算增加在校生数（人） | AD5: 合计 | AE5: 省级 | AF5: 市县 | AG5: 公办寄宿制学校寄宿生 | AH5: 合计 | AI5: 省级 | AJ5: 市县 | AN5: 小计 | AO5: 其中：中央资金 | AP5: 小计 | AQ5: 中央资金 | AS5: 省级资金
AQ6: 公用经费 | AR6: 综合奖补
A7: 全省合计 | D7: 3192251 | E7: 1481728 | H7: 380183.2 | I7: 217299.96 | J7: 4823.93 | K7: 162883.24 | L7: 1399 | M7: 58752 | N7: 139900 | O7: 81148 | P7: 6086.3 | Q7: 4531.29 | R7: 1555.01 | S7: 1004 | T7: 142638 | U7: 200800 | V7: 58162 | W7: 4362.37 | X7: 2751.51 | Y7: 1610.86 | Z7: 437 | AA7: 68880 | AB7: 131100 | AC7: 62220 | AD7: 5911.07 | AE7: 4456.15 | AF7: 1454.92 | AG7: 192197 | AH7: 7687.88 | AI7: 5033.28 | AJ7: 2654.6 | AK7: 404230.82 | AL7: 234072.19 | AM7: 170158.63 | AN7: 224432 | AO7: 204432 | AP7: 9640.19 | AQ7: -534 | AR7: =AR8+AR23+AR32+AR45+AR59+AR77+AR98+AR110+AR89 -> -931 | AS7: =AS8+AS23+AS32+AS45+AS59+AS77+AS98+AS110+AS89 -> 11105.19
A8: 福州市 | D8: 612927 | E8: 280619 | H8: 72628.36 | I8: 26233.1 | J8: 0.00 | K8: 46395.26 | L8: 241 | M8: 12138 | N8: 24100 | O8: 11962 | P8: 897.18 | Q8: 438.48 | R8: 458.7 | S8: 177 | T8: 24619 | U8: 35400 | V8: 10781 | W8: 808.61 | X8: 361.73 | Y8: 446.88 | Z8: 78 | AA8: 11237 | AB8: 23400 | AC8: 12163 | AD8: 1155.51 | AE8: 616.69 | AF8: 538.82 | AG8: 13446 | AH8: 537.84 | AI8: 255.5 | AJ8: 282.34 | AK8: 76027.50 | AL8: 27905.50 | AM8: 48122.00 | AN8: 26821 | AO8: 24433 | AP8: 1084.50 | AQ8: -534 | AR8: =SUM(AR9:AR22) -> -279 | AS8: =SUM(AS9:AS22) -> 1897.50
A9: 市本级 | B9: 0.2 | C9: 0.2 | D9: 31127 | E9: 58554 | F9: 750 | G9: 950 | H9: 7897.16 | I9: 1579.43 | K9: 6317.73 | S9: 1 | T9: 155 | U9: 200 | V9: 45 | W9: 3.38 | X9: 0.68 | Y9: 2.70 | Z9: 1 | AA9: 197 | AB9: 300 | AC9: 103 | AD9: 9.79 | AE9: 1.96 | AF9: 7.83 | AK9: 7910.33 | AL9: 1582.07 | AM9: 6328.26 | AN9: 1445 | AO9: 1314 | AP9: 137.07 | AQ9: -534 | AR9: -15 | AS9: =AP9-AQ9-AR9 -> 686.07
A10: 鼓楼区 | B10: 0.2 | C10: 0.2 | D10: 67738 | E10: 5016 | F10: 750 | G10: 950 | H10: 5556.87 | I10: 1111.37 | K10: 4445.50 | AK10: 5556.87 | AL10: 1111.37 | AM10: 4445.50 | AN10: 1025 | AO10: 934 | AP10: 86.37 | AR10: -11 | AS10: =AP10-AQ10-AR10 -> 97.37
A11: 台江区 | B11: 0.2 | C11: 0.2 | D11: 25332 | E11: 6087 | F11: 750 | G11: 950 | H11: 2478.17 | I11: 495.63 | K11: 1982.54 | L11: 1 | M11: 80 | N11: 100 | O11: 20 | P11: 1.50 | Q11: 0.30 | R11: 1.20 | S11: 1 | T11: 118 | U11: 200 | V11: 82 | W11: 6.15 | X11: 1.23 | Y11: 4.92 | AK11: 2485.82 | AL11: 497.16 | AM11: 1988.66 | AN11: 480 | AO11: 437 | AP11: 17.16 | AR11: -5 | AS11: 22.16
A12: 仓山区 | B12: 0.2 | C12: 0.2 | D12: 82087 | E12: 22497 | F12: 750 | G12: 950 | H12: 8293.74 | I12: 1658.75 | K12: 6634.99 | S12: 2 | T12: 268 | U12: 400 | V12: 132 | W12: 9.90 | X12: 1.98 | Y12: 7.92 | AK12: 8303.64 | AL12: 1660.73 | AM12: 6642.91 | AN12: 1544 | AO12: 1408 | AP12: 116.73 | AR12: -16 | AS12: 132.73
A13: 马尾区 | B13: 0.2 | C13: 0.2 | D13: 17014 | E13: 7734 | F13: 750 | G13: 950 | H13: 2010.78 | I13: 402.16 | K13: 1608.62 | L13: 3 | M13: 153 | N13: 300 | O13: 147 | P13: 11.03 | Q13: 2.21 | R13: 8.82 | S13: 5 | T13: 747 | U13: 1000 | V13: 253 | W13: 18.98 | X13: 3.80 | Y13: 15.18 | Z13: 4 | AA13: 436 | AB13: 1200 | AC13: 764 | AD13: 72.58 | AE13: 14.52 | AF13: 58.06 | AK13: 2113.37 | AL13: 422.69 | AM13: 1690.68 | AN13: 397 | AO13: 362 | AP13: 25.69 | AR13: -5 | AS13: 30.69
A14: 晋安区 | B14: 0.2 | C14: 0.2 | D14: 49284 | E14: 15722 | F14: 750 | G14: 950 | H14: 5189.89 | I14: 1037.98 | K14: 4151.91 | L14: 5 | M14: 201 | N14: 500 | O14: 299 | P14: 22.43 | Q14: 4.49 | R14: 17.94 | S14: 2 | T14: 327 | U14: 400 | V14: 73 | W14: 5.48 | X14: 1.10 | Y14: 4.38 | Z14: 7 | AA14: 1000 | AB14: 2100 | AC14: 1100 | AD14: 104.50 | AE14: 20.90 | AF14: 83.60 | AG14: 454 | AH14: 18.16 | AI14: 3.63 | AJ14: 14.53 | AK14: 5340.46 | AL14: 1068.10 | AM14: 4272.36 | AN14: 1021 | AO14: 930 | AP14: 47.10 | AR14: -11 | AS14: 58.10
A15: 闽侯县 | B15: 0.4 | C15: 0.4 | D15: 53944 | E15: 23497 | F15: 750 | G15: 950 | H15: 6278.02 | I15: 2511.21 | K15: 3766.81 | L15: 18 | M15: 754 | N15: 1800 | O15: 1046 | P15: 78.45 | Q15: 31.38 | R15: 47.07 | S15: 9 | T15: 1159 | U15: 1800 | V15: 641 | W15: 48.08 | X15: 19.23 | Y15: 28.85 | Z15: 5 | AA15: 517 | AB15: 1500 | AC15: 983 | AD15: 93.39 | AE15: 37.36 | AF15: 56.03 | AG15: 633 | AH15: 25.32 | AI15: 10.13 | AJ15: 15.19 | AK15: 6523.26 | AL15: 2609.31 | AM15: 3913.95 | AN15: 2469 | AO15: 2249 | AP15: 140.31 | AR15: -26 | AS15: 166.31
A16: 连江县 | B16: 0.6 | C16: 0.6 | D16: 45179 | E16: 24685 | F16: 750 | G16: 950 | H16: 5733.50 | I16: 3440.10 | K16: 2293.40 | L16: 21 | M16: 1130 | N16: 2100 | O16: 970 | P16: 72.75 | Q16: 43.65 | R16: 29.10 | S16: 15 | T16: 2154 | U16: 3000 | V16: 846 | W16: 63.45 | X16: 38.07 | Y16: 25.38 | Z16: 12 | AA16: 1857 | AB16: 3600 | AC16: 1743 | AD16: 165.59 | AE16: 99.35 | AF16: 66.24 | AG16: 1864 | AH16: 74.56 | AI16: 44.74 | AJ16: 29.82 | AK16: 6109.85 | AL16: 3665.91 | AM16: 2443.94 | AN16: 3620 | AO16: 3297 | AP16: 45.91 | AR16: -37 | AS16: 82.91
A17: 罗源县 | B17: 0.6 | C17: 0.6 | D17: 20847 | E17: 7352 | F17: 750 | G17: 950 | H17: 2261.97 | I17: 1357.18 | K17: 904.79 | L17: 14 | M17: 591 | N17: 1400 | O17: 809 | P17: 60.68 | Q17: 36.41 | R17: 24.27 | S17: 5 | T17: 643 | U17: 1000 | V17: 357 | W17: 26.78 | X17: 16.07 | Y17: 10.71 | Z17: 9 | AA17: 794 | AB17: 2700 | AC17: 1906 | AD17: 181.07 | AE17: 108.64 | AF17: 72.43 | AG17: 385 | AH17: 15.40 | AI17: 9.24 | AJ17: 6.16 | AK17: 2545.90 | AL17: 1527.54 | AM17: 1018.36 | AN17: 1477 | AO17: 1347 | AP17: 50.54 | AR17: -15 | AS17: 65.54
A18: 闽清县 | B18: 0.8 | C18: 0.8 | D18: 18303 | E18: 9461 | F18: 750 | G18: 950 | H18: 2271.52 | I18: 1817.22 | K18: 454.30 | L18: 23 | M18: 976 | N18: 2300 | O18: 1324 | P18: 99.30 | Q18: 79.44 | R18: 19.86 | S18: 10 | T18: 1514 | U18: 2000 | V18: 486 | W18: 36.45 | X18: 29.16 | Y18: 7.29 | Z18: 5 | AA18: 793 | AB18: 1500 | AC18: 707 | AD18: 67.17 | AE18: 53.74 | AF18: 13.43 | AG18: 787 | AH18: 31.48 | AI18: 25.18 | AJ18: 6.30 | AK18: 2505.92 | AL18: 2004.74 | AM18: 501.18 | AN18: 1968 | AO18: 1793 | AP18: 36.74 | AR18: -20 | AS18: 56.74
A19: 永泰县 | B19: 0.8 | C19: 0.8 | D19: 19447 | E19: 9894 | F19: 750 | G19: 950 | H19: 2398.46 | I19: 1918.76 | K19: 479.70 | L19: 11 | M19: 427 | N19: 1100 | O19: 673 | P19: 50.48 | Q19: 40.38 | R19: 10.10 | S19: 9 | T19: 1319 | U19: 1800 | V19: 481 | W19: 36.08 | X19: 28.86 | Y19: 7.22 | Z19: 14 | AA19: 1683 | AB19: 4200 | AC19: 2517 | AD19: 239.12 | AE19: 191.30 | AF19: 47.82 | AG19: 838 | AH19: 33.52 | AI19: 26.82 | AJ19: 6.70 | AK19: 2757.66 | AL19: 2206.12 | AM19: 551.54 | AN19: 2121 | AO19: 1932 | AP19: 85.12 | AR19: -22 | AS19: 107.12
A20: 福清市 | B20: 0.4 | C20: 0.4 | D20: 114031 | E20: 57719 | F20: 750 | G20: 950 | H20: 14035.63 | I20: 5614.25 | K20: 8421.38 | L20: 132 | M20: 7121 | N20: 13200 | O20: 6079 | P20: 455.93 | Q20: 182.37 | R20: 273.56 | S20: 98 | T20: 13213 | U20: 19600 | V20: 6387 | W20: 479.03 | X20: 191.61 | Y20: 287.42 | Z20: 17 | AA20: 3178 | AB20: 5100 | AC20: 1922 | AD20: 182.59 | AE20: 73.04 | AF20: 109.55 | AG20: 7309 | AH20: 292.36 | AI20: 116.94 | AJ20: 175.42 | AK20: 15445.54 | AL20: 6178.21 | AM20: 9267.33 | AN20: 6029 | AO20: 5492 | AP20: 149.21 | AR20: -62 | AS20: 211.21
A21: 长乐区 | B21: 0.4 | C21: 0.4 | D21: 52111 | E21: 26835 | F21: 750 | G21: 950 | H21: 6457.65 | I21: 2583.06 | K21: 3874.59 | L21: 13 | M21: 705 | N21: 1300 | O21: 595 | P21: 44.63 | Q21: 17.85 | R21: 26.78 | S21: 17 | T21: 2640 | U21: 3400 | V21: 760 | W21: 57.00 | X21: 22.80 | Y21: 34.20 | Z21: 4 | AA21: 782 | AB21: 1200 | AC21: 418 | AD21: 39.71 | AE21: 15.88 | AF21: 23.83 | AG21: 1176 | AH21: 47.04 | AI21: 18.82 | AJ21: 28.22 | AK21: 6646.03 | AL21: 2658.41 | AM21: 3987.62 | AN21: 2595 | AO21: 2364 | AP21: 63.41 | AR21: -27 | AS21: 90.41
A22: 高新区管委会 | B22: 0.4 | C22: 0.4 | D22: 16483 | E22: 5566 | F22: 750 | G22: 950 | H22: 1765.00 | I22: 706.00 | K22: 1059.00 | S22: 3 | T22: 362 | U22: 600 | V22: 238 | W22: 17.85 | X22: 7.14 | Y22: 10.71 | AK22: 1782.85 | AL22: 713.14 | AM22: 1069.71 | AN22: 630 | AO22: 574 | AP22: 83.14 | AR22: -7 | AS22: 90.14
A23: 莆田市 | D23: 281913 | E23: 143826 | H23: 34806.96 | I23: 22729.19 | J23: 0.00 | K23: 12077.77 | L23: 197 | M23: 10781 | N23: 19700 | O23: 8919 | P23: 668.94 | Q23: 445.18 | R23: 223.76 | S23: 157 | T23: 22208 | U23: 31400 | V23: 9192 | W23: 689.41 | X23: 464.98 | Y23: 224.43 | Z23: 37 | AA23: 5739 | AB23: 11100 | AC23: 5361 | AD23: 509.31 | AE23: 373.17 | AF23: 136.14 | AG23: 33835 | AH23: 1353.4 | AI23: 844.04 | AJ23: 509.36 | AK23: 38028.02 | AL23: 24856.56 | AM23: 13171.46 | AN23: 23807 | AO23: 21687 | AP23: 1049.56 | AR23: =SUM(AR24:AR31) -> -246 | AS23: =SUM(AS24:AS31) -> 1295.56
A24: 市本级 | B24: 0.6 | C24: 0.6 | D24: 11957 | E24: 13333 | F24: 750 | G24: 950 | H24: 2163.41 | I24: 1298.05 | K24: 865.36 | L24: 1 | M24: 94 | N24: 100 | O24: 6 | P24: 0.45 | Q24: 0.27 | R24: 0.18 | S24: 0 | Z24: 2 | AA24: 309 | AB24: 600 | AC24: 291 | AD24: 27.65 | AE24: 16.59 | AF24: 11.06 | AG24: 3532 | AH24: 141.28 | AI24: 84.77 | AJ24: 56.51 | AK24: 2332.79 | AL24: 1399.68 | AM24: 933.11 | AN24: 1257 | AO24: 1147 | AP24: 142.68 | AR24: -13 | AS24: =AP24-AQ24-AR24 -> 155.68
A25: 城厢区 | B25: 0.6 | C25: 0.6 | D25: 47652 | E25: 22292 | F25: 750 | G25: 950 | H25: 5691.64 | I25: 3414.98 | K25: 2276.66 | L25: 16 | M25: 834 | N25: 1600 | O25: 766 | P25: 57.45 | Q25: 34.47 | R25: 22.98 | S25: 19 | T25: 2518 | U25: 3800 | V25: 1282 | W25: 96.15 | X25: 57.69 | Y25: 38.46 | Z25: 3 | AA25: 544 | AB25: 900 | AC25: 356 | AD25: 33.82 | AE25: 20.29 | AF25: 13.53 | AG25: 5421 | AH25: 216.84 | AI25: 130.10 | AJ25: 86.74 | AK25: 6095.90 | AL25: 3657.53 | AM25: 2438.37 | AN25: 3402 | AO25: 3099 | AP25: 255.53 | AR25: -35 | AS25: 290.53
A26: 涵江区 | B26: 0.6 | C26: 0.6 | D26: 37523 | E26: 16859 | F26: 750 | G26: 950 | H26: 4415.83 | I26: 2649.50 | K26: 1766.33 | L26: 21 | M26: 1028 | N26: 2100 | O26: 1072 | P26: 80.40 | Q26: 48.24 | R26: 32.16 | S26: 21 | T26: 2988 | U26: 4200 | V26: 1212 | W26: 90.90 | X26: 54.54 | Y26: 36.36 | Z26: 5 | AA26: 749 | AB26: 1500 | AC26: 751 | AD26: 71.35 | AE26: 42.81 | AF26: 28.54 | AG26: 1061 | AH26: 42.44 | AI26: 25.46 | AJ26: 16.98 | AK26: 4700.92 | AL26: 2820.55 | AM26: 1880.37 | AN26: 2685 | AO26: 2446 | AP26: 135.55 | AR26: -28 | AS26: 163.55
A27: 荔城区 | B27: 0.6 | C27: 0.6 | D27: 62161 | E27: 26536 | F27: 750 | G27: 950 | H27: 7183.00 | I27: 4309.80 | K27: 2873.20 | L27: 21 | M27: 1508 | N27: 2100 | O27: 592 | P27: 44.40 | Q27: 26.64 | R27: 17.76 | S27: 21 | T27: 3153 | U27: 4200 | V27: 1047 | W27: 78.53 | X27: 47.12 | Y27: 31.41 | AG27: 6084 | AH27: 243.36 | AI27: 146.02 | AJ27: 97.34 | AK27: 7549.29 | AL27: 4529.58 | AM27: 3019.71 | AN27: 4239 | AO27: 3861 | AP27: 290.58 | AR27: -44 | AS27: 334.58
A28: 秀屿区 | B28: 0.6 | C28: 0.6 | D28: 37035 | E28: 23972 | F28: 750 | G28: 950 | H28: 5054.97 | I28: 3032.98 | K28: 2021.99 | L28: 68 | M28: 3545 | N28: 6800 | O28: 3255 | P28: 244.13 | Q28: 146.48 | R28: 97.65 | S28: 30 | T28: 4335 | U28: 6000 | V28: 1665 | W28: 124.88 | X28: 74.93 | Y28: 49.95 | Z28: 6 | AA28: 1394 | AB28: 1800 | AC28: 406 | AD28: 38.57 | AE28: 23.14 | AF28: 15.43 | AG28: 12734 | AH28: 509.36 | AI28: 305.62 | AJ28: 203.74 | AK28: 5971.91 | AL28: 3583.15 | AM28: 2388.76 | AN28: 3536 | AO28: 3221 | AP28: 47.15 | AR28: -37 | AS28: 84.15
A29: 湄洲岛管委会 | B29: 0.6 | C29: 0.6 | D29: 3129 | E29: 1373 | F29: 750 | G29: 950 | H29: 365.11 | I29: 219.07 | K29: 146.04 | AG29: 57 | AH29: 2.28 | AI29: 1.37 | AJ29: 0.91 | AK29: 367.39 | AL29: 220.44 | AM29: 146.95 | AN29: 221 | AO29: 201 | AP29: -0.56 | AR29: -2 | AS29: 1.44
A30: 北岸管委会 | B30: 0.6 | C30: 0.6 | D30: 6868 | E30: 2030 | F30: 750 | G30: 950 | H30: 707.95 | I30: 424.77 | K30: 283.18 | L30: 9 | M30: 593 | N30: 900 | O30: 307 | P30: 23.03 | Q30: 13.82 | R30: 9.21 | S30: 9 | T30: 1236 | U30: 1800 | V30: 564 | W30: 42.30 | X30: 25.38 | Y30: 16.92 | AG30: 946 | AH30: 37.84 | AI30: 22.70 | AJ30: 15.14 | AK30: 811.12 | AL30: 486.67 | AM30: 324.45 | AN30: 493 | AO30: 449 | AP30: -6.33 | AR30: -5 | AS30: -1.33
A31: 仙游县 | B31: 0.8 | C31: 0.8 | D31: 75588 | E31: 37431 | F31: 750 | G31: 950 | H31: 9225.05 | I31: 7380.04 | K31: 1845.01 | L31: 61 | M31: 3179 | N31: 6100 | O31: 2921 | P31: 219.08 | Q31: 175.26 | R31: 43.82 | S31: 57 | T31: 7978 | U31: 11400 | V31: 3422 | W31: 256.65 | X31: 205.32 | Y31: 51.33 | Z31: 21 | AA31: 2743 | AB31: 6300 | AC31: 3557 | AD31: 337.92 | AE31: 270.34 | AF31: 67.58 | AG31: 4000 | AH31: 160.00 | AI31: 128.00 | AJ31: 32.00 | AK31: 10198.70 | AL31: 8158.96 | AM31: 2039.74 | AN31: 7974 | AO31: 7263 | AP31: 184.96 | AR31: -82 | AS31: 266.96
A32: 三明市 | D32: 214545 | E32: 111597 | H32: 26692.62 | I32: 20359.31 | J32: 549.13 | K32: 6333.31 | L32: 84 | M32: 3158 | N32: 8400 | O32: 5242 | P32: 393.18 | Q32: 312.04 | R32: 81.14 | S32: 49 | T32: 6901 | U32: 9800 | V32: 2899 | W32: 217.46 | X32: 178.25 | Y32: 39.21 | Z32: 40 | AA32: 6571 | AB32: 12000 | AC32: 5429 | AD32: 515.78 | AE32: 435.52 | AF32: 80.26 | AG32: 25587 | AH32: 1023.48 | AI32: 786.52 | AJ32: 236.96 | AK32: 28842.52 | AL32: 22071.64 | AM32: 6770.88 | AN32: 21451 | AO32: 19541 | AP32: 620.64 | AR32: =SUM(AR33:AR44) -> -221 | AS32: =SUM(AS33:AS44) -> 841.64
A33: 市本级 | B33: 0.6 | C33: 0.6 | D33: 6559 | E33: 6026 | F33: 750 | G33: 950 | H33: 1064.40 | I33: 638.64 | K33: 425.76 | AG33: 410 | AH33: 16.40 | AI33: 9.84 | AJ33: 6.56 | AK33: 1080.80 | AL33: 648.48 | AM33: 432.32 | AN33: 503 | AO33: 458 | AP33: 145.48 | AR33: -5 | AS33: 150.48
A34: 三元区 | B34: 0.8 | C34: 0.8 | D34: 30287 | E34: 11870 | F34: 750 | G34: 950 | H34: 3399.18 | I34: 2719.34 | K34: 679.84 | L34: 2 | M34: 140 | N34: 200 | O34: 60 | P34: 4.50 | Q34: 3.60 | R34: 0.90 | S34: 2 | T34: 343 | U34: 400 | V34: 57 | W34: 4.28 | X34: 3.42 | Y34: 0.86 | Z34: 5 | AA34: 869 | AB34: 1500 | AC34: 631 | AD34: 59.95 | AE34: 47.96 | AF34: 11.99 | AG34: 642 | AH34: 25.68 | AI34: 20.54 | AJ34: 5.14 | AK34: 3493.59 | AL34: 2794.86 | AM34: 698.73 | AN34: 2613 | AO34: 2380 | AP34: 181.86 | AR34: -27 | AS34: 208.86
A35: 明溪县 | B35: 0.8 | C35: 0.9 | D35: 6250 | E35: 2723 | F35: 750 | G35: 950 | H35: 727.44 | I35: 617.84 | J35: 35.89 | K35: 109.60 | L35: 7 | M35: 321 | N35: 700 | O35: 379 | P35: 28.43 | Q35: 25.59 | R35: 2.84 | S35: 2 | T35: 282 | U35: 400 | V35: 118 | W35: 8.85 | X35: 7.97 | Y35: 0.88 | AG35: 656 | AH35: 26.24 | AI35: 20.99 | AJ35: 5.25 | AK35: 790.96 | AL35: 672.39 | AM35: 118.57 | AN35: 642 | AO35: 585 | AP35: 30.39 | AR35: -7 | AS35: 37.39
A36: 清流县 | B36: 0.8 | C36: 0.9 | D36: 9125 | E36: 5499 | F36: 750 | G36: 950 | H36: 1206.78 | I36: 1023.92 | J36: 58.50 | K36: 182.86 | L36: 6 | M36: 439 | N36: 600 | O36: 161 | P36: 12.08 | Q36: 10.87 | R36: 1.21 | S36: 4 | T36: 582 | U36: 800 | V36: 218 | W36: 16.35 | X36: 14.72 | Y36: 1.63 | AG36: 2380 | AH36: 95.20 | AI36: 76.16 | AJ36: 19.04 | AK36: 1330.41 | AL36: 1125.67 | AM36: 204.74 | AN36: 1106 | AO36: 1007 | AP36: 19.67 | AR36: -11 | AS36: 30.67
A37: 宁化县 | B37: 0.8 | C37: 0.9 | D37: 21580 | E37: 12852 | F37: 750 | G37: 950 | H37: 2839.44 | I37: 2409.28 | J37: 137.73 | K37: 430.16 | L37: 7 | M37: 57 | N37: 700 | O37: 643 | P37: 48.23 | Q37: 43.41 | R37: 4.82 | S37: 7 | T37: 1004 | U37: 1400 | V37: 396 | W37: 29.70 | X37: 26.73 | Y37: 2.97 | Z37: 5 | AA37: 788 | AB37: 1500 | AC37: 712 | AD37: 67.64 | AE37: 60.88 | AF37: 6.76 | AG37: 3452 | AH37: 138.08 | AI37: 110.46 | AJ37: 27.62 | AK37: 3123.09 | AL37: 2650.76 | AM37: 472.33 | AN37: 2601 | AO37: 2369 | AP37: 49.76 | AR37: -27 | AS37: 76.76
A38: 大田县 | B38: 0.8 | C38: 0.8 | D38: 30839 | E38: 17610 | F38: 750 | G38: 950 | H38: 3985.88 | I38: 3188.70 | K38: 797.18 | L38: 13 | M38: 430 | N38: 1300 | O38: 870 | P38: 65.25 | Q38: 52.20 | R38: 13.05 | S38: 8 | T38: 1081 | U38: 1600 | V38: 519 | W38: 38.93 | X38: 31.14 | Y38: 7.79 | Z38: 3 | AA38: 655 | AB38: 900 | AC38: 245 | AD38: 23.28 | AE38: 18.62 | AF38: 4.66 | AG38: 6546 | AH38: 261.84 | AI38: 209.47 | AJ38: 52.37 | AK38: 4375.18 | AL38: 3500.13 | AM38: 875.05 | AN38: 3526 | AO38: 3212 | AP38: -25.87 | AR38: -36 | AS38: 10.13
A39: 尤溪县 | B39: 0.8 | C39: 0.8 | D39: 31581 | E39: 13252 | F39: 750 | G39: 950 | H39: 3627.52 | I39: 2902.01 | K39: 725.51 | L39: 15 | M39: 699 | N39: 1500 | O39: 801 | P39: 60.08 | Q39: 48.06 | R39: 12.02 | S39: 4 | T39: 463 | U39: 800 | V39: 337 | W39: 25.28 | X39: 20.22 | Y39: 5.06 | Z39: 5 | AA39: 967 | AB39: 1500 | AC39: 533 | AD39: 50.64 | AE39: 40.51 | AF39: 10.13 | AG39: 4190 | AH39: 167.60 | AI39: 134.08 | AJ39: 33.52 | AK39: 3931.12 | AL39: 3144.88 | AM39: 786.24 | AN39: 3011 | AO39: 2743 | AP39: 133.88 | AR39: -31 | AS39: 164.88
A40: 沙县区 | B40: 0.8 | C40: 0.9 | D40: 21655 | E40: 12225 | F40: 750 | G40: 950 | H40: 2785.50 | I40: 2363.92 | J40: 135.52 | K40: 421.58 | L40: 7 | M40: 232 | N40: 700 | O40: 468 | P40: 35.10 | Q40: 31.59 | R40: 3.51 | S40: 5 | T40: 855 | U40: 1000 | V40: 145 | W40: 10.88 | X40: 9.79 | Y40: 1.09 | Z40: 7 | AA40: 1082 | AB40: 2100 | AC40: 1018 | AD40: 96.71 | AE40: 87.04 | AF40: 9.67 | AG40: 1312 | AH40: 52.48 | AI40: 41.98 | AJ40: 10.50 | AK40: 2980.67 | AL40: 2534.32 | AM40: 446.35 | AN40: 2586 | AO40: 2356 | AP40: -51.68 | AR40: -27 | AS40: -24.68
A41: 将乐县 | B41: 0.8 | C41: 0.9 | D41: 11858 | E41: 7065 | F41: 750 | G41: 950 | H41: 1560.53 | I41: 1324.11 | J41: 75.69 | K41: 236.42 | L41: 4 | M41: 188 | N41: 400 | O41: 212 | P41: 15.90 | Q41: 14.31 | R41: 1.59 | S41: 3 | T41: 353 | U41: 600 | V41: 247 | W41: 18.53 | X41: 16.68 | Y41: 1.85 | Z41: 11 | AA41: 1665 | AB41: 3300 | AC41: 1635 | AD41: 155.33 | AE41: 139.80 | AF41: 15.53 | AG41: 722 | AH41: 28.88 | AI41: 23.10 | AJ41: 5.78 | AK41: 1779.17 | AL41: 1518.00 | AM41: 261.17 | AN41: 1477 | AO41: 1345 | AP41: 41.00 | AR41: -15 | AS41: 56.00
A42: 泰宁县 | B42: 0.8 | C42: 0.9 | D42: 9280 | E42: 4504 | F42: 750 | G42: 950 | H42: 1123.88 | I42: 954.24 | J42: 55.14 | K42: 169.64 | L42: 7 | M42: 187 | N42: 700 | O42: 513 | P42: 38.48 | Q42: 34.63 | R42: 3.85 | S42: 5 | T42: 663 | U42: 1000 | V42: 337 | W42: 25.28 | X42: 22.75 | Y42: 2.53 | Z42: 1 | AA42: 92 | AB42: 300 | AC42: 208 | AD42: 19.76 | AE42: 17.78 | AF42: 1.98 | AG42: 1391 | AH42: 55.64 | AI42: 44.51 | AJ42: 11.13 | AK42: 1263.04 | AL42: 1073.91 | AM42: 189.13 | AN42: 1028 | AO42: 938 | AP42: 45.91 | AR42: -11 | AS42: 56.91
A43: 建宁县 | B43: 0.8 | C43: 0.9 | D43: 7937 | E43: 4729 | F43: 750 | G43: 950 | H43: 1044.53 | I43: 886.29 | J43: 50.66 | K43: 158.24 | L43: 4 | M43: 34 | N43: 400 | O43: 366 | P43: 27.45 | Q43: 24.71 | R43: 2.74 | S43: 4 | T43: 558 | U43: 800 | V43: 242 | W43: 18.15 | X43: 16.34 | Y43: 1.81 | Z43: 1 | AA43: 175 | AB43: 300 | AC43: 125 | AD43: 11.88 | AE43: 10.69 | AF43: 1.19 | AG43: 2076 | AH43: 83.04 | AI43: 66.43 | AJ43: 16.61 | AK43: 1185.05 | AL43: 1004.46 | AM43: 180.59 | AN43: 988 | AO43: 900 | AP43: 16.46 | AR43: -10 | AS43: 26.46
A44: 永安市 | B44: 0.4 | C44: 0.4 | D44: 27594 | E44: 13242 | F44: 750 | G44: 950 | H44: 3327.54 | I44: 1331.02 | K44: 1996.52 | L44: 12 | M44: 431 | N44: 1200 | O44: 769 | P44: 57.68 | Q44: 23.07 | R44: 34.61 | S44: 5 | T44: 717 | U44: 1000 | V44: 283 | W44: 21.23 | X44: 8.49 | Y44: 12.74 | Z44: 2 | AA44: 278 | AB44: 600 | AC44: 322 | AD44: 30.59 | AE44: 12.24 | AF44: 18.35 | AG44: 1810 | AH44: 72.40 | AI44: 28.96 | AJ44: 43.44 | AK44: 3509.44 | AL44: 1403.78 | AM44: 2105.66 | AN44: 1370 | AO44: 1248 | AP44: 33.78 | AR44: -14 | AS44: 47.78
A45: 泉州市 | D45: 859564 | E45: 391055 | H45: 101617.56 | I45: 42052.45 | J45: 0 | K45: 59565.11 | L45: 200 | M45: 10356 | N45: 20000 | O45: 9644 | P45: 723.32 | Q45: 519.21 | R45: 204.11 | S45: 235.00 | T45: 33985 | U45: 47000 | V45: 13015 | W45: 976.14 | X45: 496.95 | Y45: 479.19 | Z45: 45 | AA45: 7848 | AB45: 13500 | AC45: 5652 | AD45: 536.96 | AE45: 369.18 | AF45: 167.78 | AG45: 39941 | AH45: 1597.64 | AI45: 753.29 | AJ45: 844.35 | AK45: 105451.62 | AL45: 44191.08 | AM45: 61260.54 | AN45: 42305 | AO45: 38535 | AP45: 1886.08 | AR45: =SUM(AR46:AR58) -> -185 | AS45: =SUM(AS46:AS58) -> 2071.08
A46: 市本级 | B46: 0.2 | C46: 0.2 | D46: 15639 | E46: 18457 | F46: 750 | G46: 950 | H46: 2926.34 | I46: 585.27 | K46: 2341.07 | L46: 1 | M46: 43 | N46: 100 | O46: 57 | P46: 4.28 | Q46: 0.86 | R46: 3.42 | Z46: 3 | AA46: 401 | AB46: 900 | AC46: 499 | AD46: 47.41 | AE46: 9.48 | AF46: 37.93 | AG46: 270 | AH46: 10.80 | AI46: 2.16 | AJ46: 8.64 | AK46: 2988.83 | AL46: 597.77 | AM46: 2391.06 | AN46: 568 | AO46: 517 | AP46: 29.77 | AR46: -6 | AS46: 35.77
A47: 鲤城区 | B47: 0.2 | C47: 0.2 | D47: 43502 | E47: 17935 | F47: 750 | G47: 950 | H47: 4966.48 | I47: 993.30 | K47: 3973.18 | AK47: 4966.48 | AL47: 993.30 | AM47: 3973.18 | AN47: 924 | AO47: 842 | AP47: 69.30 | AR47: -10 | AS47: 79.30
A48: 丰泽区 | B48: 0.2 | C48: 0.2 | D48: 53050 | E48: 15244 | F48: 750 | G48: 950 | H48: 5426.93 | I48: 1085.39 | K48: 4341.54 | S48: 1 | T48: 197 | U48: 200 | V48: 3 | W48: 0.23 | X48: 0.05 | Y48: 0.18 | AG48: 71 | AH48: 2.84 | AI48: 0.57 | AJ48: 2.27 | AK48: 5430.00 | AL48: 1086.01 | AM48: 4343.99 | AN48: 1011 | AO48: 921 | AP48: 75.01 | AR48: -10 | AS48: 85.01
A49: 洛江区 | B49: 0.2 | C49: 0.2 | D49: 26526 | E49: 10145 | F49: 750 | G49: 950 | H49: 2953.23 | I49: 590.65 | K49: 2362.58 | L49: 4 | M49: 229 | N49: 400 | O49: 171 | P49: 12.83 | Q49: 2.57 | R49: 10.26 | S49: 8 | T49: 1170 | U49: 1600 | V49: 430 | W49: 32.25 | X49: 6.45 | Y49: 25.80 | Z49: 1 | AA49: 96 | AB49: 300 | AC49: 204 | AD49: 19.38 | AE49: 3.88 | AF49: 15.50 | AG49: 355 | AH49: 14.20 | AI49: 2.84 | AJ49: 11.36 | AK49: 3031.89 | AL49: 606.39 | AM49: 2425.50 | AN49: 564 | AO49: 514 | AP49: 42.39 | AR49: -6 | AS49: 48.39
A50: 泉港区 | B50: 0.2 | C50: 0.2 | D50: 34672 | E50: 16451 | F50: 750 | G50: 950 | H50: 4163.25 | I50: 832.65 | K50: 3330.60 | L50: 7 | M50: 296 | N50: 700 | O50: 404 | P50: 30.30 | Q50: 6.06 | R50: 24.24 | S50: 15 | T50: 2052 | U50: 3000 | V50: 948 | W50: 71.10 | X50: 14.22 | Y50: 56.88 | Z50: 1 | AA50: 206 | AB50: 300 | AC50: 94 | AD50: 8.93 | AE50: 1.79 | AF50: 7.14 | AG50: 1917 | AH50: 76.68 | AI50: 15.34 | AJ50: 61.34 | AK50: 4350.26 | AL50: 870.06 | AM50: 3480.20 | AN50: 831 | AO50: 757 | AP50: 39.06 | AR50: -9 | AS50: 48.06
A51: 惠安县 | B51: 0.4 | C51: 0.4 | D51: 85770 | E51: 32269 | F51: 750 | G51: 950 | H51: 9498.31 | I51: 3799.32 | K51: 5698.99 | L51: 11 | M51: 917 | N51: 1100 | O51: 183 | P51: 13.73 | Q51: 5.49 | R51: 8.24 | S51: 39 | T51: 5562 | U51: 7800 | V51: 2238 | W51: 167.85 | X51: 67.14 | Y51: 100.71 | Z51: 1 | AA51: 283 | AB51: 300 | AC51: 17 | AD51: 1.62 | AE51: 0.65 | AF51: 0.97 | AG51: 3677 | AH51: 147.08 | AI51: 58.83 | AJ51: 88.25 | AK51: 9828.59 | AL51: 3931.43 | AM51: 5897.16 | AN51: 3636 | AO51: 3312 | AP51: 295.43 | AR51: -38 | AS51: 333.43
A52: 安溪县 | B52: 0.8 | C52: 0.8 | D52: 91573 | E52: 54067 | F52: 750 | G52: 950 | H52: 12004.34 | I52: 9603.47 | K52: 2400.87 | L52: 94 | M52: 4258 | N52: 9400 | O52: 5142 | P52: 385.65 | Q52: 308.52 | R52: 77.13 | S52: 31 | T52: 4262 | U52: 6200 | V52: 1938 | W52: 145.35 | X52: 116.28 | Y52: 29.07 | Z52: 17 | AA52: 2798 | AB52: 5100 | AC52: 2302 | AD52: 218.69 | AE52: 174.95 | AF52: 43.74 | AG52: 9452 | AH52: 378.08 | AI52: 302.46 | AJ52: 75.62 | AK52: 13132.11 | AL52: 10505.68 | AM52: 2626.43 | AN52: 10457 | AO52: 9525 | AP52: 48.68 | AR52: -106 | AS52: 154.68
A53: 永春县 | B53: 0.8 | C53: 0.8 | D53: 33507 | E53: 19748 | F53: 750 | G53: 950 | H53: 4389.09 | I53: 3511.27 | K53: 877.82 | L53: 38 | M53: 1964 | N53: 3800 | O53: 1836 | P53: 137.70 | Q53: 110.16 | R53: 27.54 | S53: 19 | T53: 2358 | U53: 3800 | V53: 1442 | W53: 108.15 | X53: 86.52 | Y53: 21.63 | Z53: 13 | AA53: 2370 | AB53: 3900 | AC53: 1530 | AD53: 145.35 | AE53: 116.28 | AF53: 29.07 | AG53: 1588 | AH53: 63.52 | AI53: 50.82 | AJ53: 12.70 | AK53: 4843.81 | AL53: 3875.05 | AM53: 968.76 | AN53: 3824 | AO53: 3483 | AP53: 51.05 | AS53: 51.05
A54: 德化县 | B54: 0.8 | C54: 0.8 | D54: 38474 | E54: 13416 | F54: 750 | G54: 950 | H54: 4160.07 | I54: 3328.06 | K54: 832.01 | L54: 7 | M54: 152 | N54: 700 | O54: 548 | P54: 41.10 | Q54: 32.88 | R54: 8.22 | S54: 2 | T54: 302 | U54: 400 | V54: 98 | W54: 7.35 | X54: 5.88 | Y54: 1.47 | Z54: 1 | AA54: 47 | AB54: 300 | AC54: 253 | AD54: 24.04 | AE54: 19.23 | AF54: 4.81 | AG54: 178 | AH54: 7.12 | AI54: 5.70 | AJ54: 1.42 | AK54: 4239.68 | AL54: 3391.75 | AM54: 847.93 | AN54: 3089 | AO54: 2814 | AP54: 302.75 | AS54: 302.75
A55: 石狮市 | B55: 0.2 | C55: 0.2 | D55: 69195 | E55: 32315 | F55: 750 | G55: 950 | H55: 8259.55 | I55: 1651.91 | K55: 6607.64 | S55: 10 | T55: 1647 | U55: 2000 | V55: 353 | W55: 26.48 | X55: 5.30 | Y55: 21.18 | AG55: 1301 | AH55: 52.04 | AI55: 10.41 | AJ55: 41.63 | AK55: 8338.07 | AL55: 1667.62 | AM55: 6670.45 | AN55: 1566 | AO55: 1426 | AP55: 101.62 | AS55: =AP55-AQ55-AR55 -> 101.62
A56: 晋江市 | B56: 0.2 | C56: 0.2 | D56: 195269 | E56: 84383 | F56: 750 | G56: 950 | H56: 22661.56 | I56: 4532.31 | K56: 18129.25 | L56: 8 | M56: 643 | N56: 800 | O56: 157 | P56: 11.78 | Q56: 2.36 | R56: 9.42 | S56: 32 | T56: 4770 | U56: 6400 | V56: 1630 | W56: 122.25 | X56: 24.45 | Y56: 97.80 | AG56: 12321 | AH56: 492.84 | AI56: 98.57 | AJ56: 394.27 | AK56: 23288.43 | AL56: 4657.69 | AM56: 18630.74 | AN56: 4408 | AO56: 4015 | AP56: 249.69 | AS56: 249.69
A57: 南安市 | B57: 0.6 | C57: 0.6 | D57: 146715 | E57: 66040 | F57: 750 | G57: 950 | H57: 17277.43 | I57: 10366.46 | K57: 6910.97 | L57: 25 | M57: 1438 | N57: 2500 | O57: 1062 | P57: 79.65 | Q57: 47.79 | R57: 31.86 | S57: 69 | T57: 10293 | U57: 13800 | V57: 3507 | W57: 263.03 | X57: 157.82 | Y57: 105.21 | Z57: 8 | AA57: 1647 | AB57: 2400 | AC57: 753 | AD57: 71.54 | AE57: 42.92 | AF57: 28.62 | AG57: 8077 | AH57: 323.08 | AI57: 193.85 | AJ57: 129.23 | AK57: 18014.73 | AL57: 10808.84 | AM57: 7205.89 | AN57: 10334 | AO57: 9413 | AP57: 474.84 | AS57: 474.84
A58: 台商投资区 | B58: 0.4 | C58: 0.4 | D58: 25672 | E58: 10585 | F58: 750 | G58: 950 | H58: 2930.98 | I58: 1172.39 | K58: 1758.59 | L58: 5 | M58: 416 | N58: 500 | O58: 84 | P58: 6.30 | Q58: 2.52 | R58: 3.78 | S58: 9 | T58: 1372 | U58: 1800 | V58: 428 | W58: 32.10 | X58: 12.84 | Y58: 19.26 | AG58: 734 | AH58: 29.36 | AI58: 11.74 | AJ58: 17.62 | AK58: 2998.74 | AL58: 1199.49 | AM58: 1799.25 | AN58: 1093 | AO58: 996 | AP58: 106.49 | AS58: 106.49
A59: 漳州市 | D59: 457581 | E59: 190907 | H59: 52454.77 | I59: 33645.19 | J59: 584.96 | K59: 18809.58 | L59: 191 | M59: 8375 | N59: 19100 | O59: 10725 | P59: 804.41 | Q59: 633.14 | R59: 171.27 | S59: 236 | T59: 34269 | U59: 47200 | V59: 12931 | W59: 969.86 | X59: 648.19 | Y59: 321.67 | Z59: 34 | AA59: 6854 | AB59: 10200 | AC59: 3346 | AD59: 317.88 | AE59: 238.28 | AF59: 79.6 | AG59: 25586 | AH59: 1023.44 | AI59: 696.24 | AJ59: 327.2 | AK59: 55570.36 | AL59: 35861.04 | AM59: 19709.32 | AN59: 33748 | AO59: 30737 | AP59: 2113.04 | AS59: 2113.04
A60: 市本级 | B60: 0.4 | C60: 0.4 | D60: 10877 | E60: 23382 | F60: 750 | G60: 950 | H60: 3037.07 | I60: 1214.83 | K60: 1822.24 | AK60: 3037.07 | AL60: 1214.83 | AM60: 1822.24 | AN60: 1198 | AO60: 1091 | AP60: 16.83 | AS60: 16.83
A61: 芗城区 | B61: 0.4 | C61: 0.4 | D61: 46855 | E61: 8401 | F61: 750 | G61: 950 | H61: 4312.22 | I61: 1724.89 | K61: 2587.33 | L61: 14 | M61: 901 | N61: 1400 | O61: 499 | P61: 37.43 | Q61: 14.97 | R61: 22.46 | S61: 15 | T61: 2132 | U61: 3000 | V61: 868 | W61: 65.10 | X61: 26.04 | Y61: 39.06 | Z61: 3 | AA61: 551 | AB61: 900 | AC61: 349 | AD61: 33.16 | AE61: 13.26 | AF61: 19.90 | AG61: 301 | AH61: 12.04 | AI61: 4.82 | AJ61: 7.22 | AK61: 4459.95 | AL61: 1783.98 | AM61: 2675.97 | AN61: 1694 | AO61: 1543 | AP61: 89.98 | AS61: 89.98
A62: 龙文区 | B62: 0.4 | C62: 0.4 | D62: 37165 | E62: 8722 | F62: 750 | G62: 950 | H62: 3615.97 | I62: 1446.39 | K62: 2169.58 | AG62: 730 | AH62: 29.20 | AI62: 11.68 | AJ62: 17.52 | AK62: 3645.17 | AL62: 1458.07 | AM62: 2187.10 | AN62: 1251 | AO62: 1140 | AP62: 207.07 | AS62: 207.07
A63: 云霄县 | B63: 0.8 | C63: 0.8 | D63: 32942 | E63: 13546 | F63: 750 | G63: 950 | H63: 3757.52 | I63: 3006.02 | K63: 751.50 | L63: 27 | M63: 1093 | N63: 2700 | O63: 1607 | P63: 120.53 | Q63: 96.42 | R63: 24.11 | S63: 23 | T63: 3369 | U63: 4600 | V63: 1231 | W63: 92.33 | X63: 73.86 | Y63: 18.47 | AG63: 2482 | AH63: 99.28 | AI63: 79.42 | AJ63: 19.86 | AK63: 4069.66 | AL63: 3255.72 | AM63: 813.94 | AN63: 3149 | AO63: 2868 | AP63: 106.72 | AS63: 106.72
A64: 漳浦县 | B64: 0.8 | C64: 0.8 | D64: 68718 | E64: 27041 | F64: 750 | G64: 950 | H64: 7722.75 | I64: 6178.20 | K64: 1544.55 | L64: 8 | M64: 450 | N64: 800 | O64: 350 | P64: 26.25 | Q64: 21.00 | R64: 5.25 | S64: 31 | T64: 4450 | U64: 6200 | V64: 1750 | W64: 131.25 | X64: 105.00 | Y64: 26.25 | Z64: 8 | AA64: 1662 | AB64: 2400 | AC64: 738 | AD64: 70.11 | AE64: 56.09 | AF64: 14.02 | AG64: 2842 | AH64: 113.68 | AI64: 90.94 | AJ64: 22.74 | AK64: 8064.04 | AL64: 6451.23 | AM64: 1612.81 | AN64: 6021 | AO64: 5484 | AP64: 430.23 | AS64: 430.23
A65: 古雷港经济开发区 | B65: 0.8 | C65: 0.8 | D65: 19503 | E65: 6061 | F65: 750 | G65: 950 | H65: 2038.52 | I65: 1630.82 | K65: 407.70 | L65: 1 | M65: 96 | N65: 100 | O65: 4 | P65: 0.30 | Q65: 0.24 | R65: 0.06 | S65: 12 | T65: 1971 | U65: 2400 | V65: 429 | W65: 32.18 | X65: 25.74 | Y65: 6.44 | Z65: 3 | AA65: 693 | AB65: 900 | AC65: 207 | AD65: 19.67 | AE65: 15.74 | AF65: 3.93 | AK65: 2090.67 | AL65: 1672.54 | AM65: 418.13 | AN65: 1544 | AO65: 1406 | AP65: 128.54 | AS65: 128.54
A66: 诏安县 | B66: 0.8 | C66: 0.9 | D66: 48498 | E66: 22496 | F66: 750 | G66: 950 | H66: 5774.47 | I66: 4903.55 | J66: 283.98 | K66: 870.92 | L66: 37 | M66: 1341 | N66: 3700 | O66: 2359 | P66: 176.93 | Q66: 159.24 | R66: 17.69 | S66: 36 | T66: 5345 | U66: 7200 | V66: 1855 | W66: 139.13 | X66: 125.22 | Y66: 13.91 | Z66: 2 | AA66: 366 | AB66: 600 | AC66: 234 | AD66: 22.23 | AE66: 20.01 | AF66: 2.22 | AG66: 2591 | AH66: 103.64 | AI66: 82.91 | AJ66: 20.73 | AK66: 6216.40 | AL66: 5290.93 | AM66: 925.47 | AN66: 5045 | AO66: 4595 | AP66: 245.93 | AS66: 245.93
A67: 长泰区 | B67: 0.6 | C67: 0.6 | D67: 21130 | E67: 8002 | F67: 750 | G67: 950 | H67: 2344.94 | I67: 1406.96 | K67: 937.98 | L67: 5 | M67: 357 | N67: 500 | O67: 143 | P67: 10.73 | Q67: 6.44 | R67: 4.29 | S67: 12 | T67: 1730 | U67: 2400 | V67: 670 | W67: 50.25 | X67: 30.15 | Y67: 20.10 | Z67: 2 | AA67: 402 | AB67: 600 | AC67: 198 | AD67: 18.81 | AE67: 11.29 | AF67: 7.52 | AG67: 2127 | AH67: 85.08 | AI67: 51.05 | AJ67: 34.03 | AK67: 2509.81 | AL67: 1505.89 | AM67: 1003.92 | AN67: 1380 | AO67: 1257 | AP67: 125.89 | AS67: 125.89
A68: 东山县 | B68: 0.8 | C68: 0.8 | D68: 19512 | E68: 7543 | F68: 750 | G68: 950 | H68: 2179.99 | I68: 1743.99 | K68: 436.00 | L68: 3 | M68: 234 | N68: 300 | O68: 66 | P68: 4.95 | Q68: 3.96 | R68: 0.99 | S68: 9 | T68: 1188 | U68: 1800 | V68: 612 | W68: 45.90 | X68: 36.72 | Y68: 9.18 | Z68: 1 | AA68: 228 | AB68: 300 | AC68: 72 | AD68: 6.84 | AE68: 5.47 | AF68: 1.37 | AG68: 314 | AH68: 12.56 | AI68: 10.05 | AJ68: 2.51 | AK68: 2250.24 | AL68: 1800.19 | AM68: 450.05 | AN68: 1668 | AO68: 1519 | AP68: 132.19 | AS68: 132.19
A69: 南靖县 | B69: 0.8 | C69: 0.9 | D69: 18368 | E69: 8368 | F69: 750 | G69: 950 | H69: 2172.56 | I69: 1844.99 | J69: 106.94 | K69: 327.57 | L69: 14 | M69: 533 | N69: 1400 | O69: 867 | P69: 65.03 | Q69: 58.53 | R69: 6.50 | S69: 8 | T69: 1207 | U69: 1600 | V69: 393 | W69: 29.48 | X69: 26.53 | Y69: 2.95 | Z69: 5 | AA69: 748 | AB69: 1500 | AC69: 752 | AD69: 71.44 | AE69: 64.30 | AF69: 7.14 | AG69: 2791 | AH69: 111.64 | AI69: 89.31 | AJ69: 22.33 | AK69: 2450.15 | AL69: 2083.66 | AM69: 366.49 | AN69: 1984 | AO69: 1807 | AP69: 99.66 | AS69: 99.66
A70: 平和县 | B70: 0.8 | C70: 0.9 | D70: 33061 | E70: 15449 | F70: 750 | G70: 950 | H70: 3947.23 | I70: 3351.82 | J70: 194.04 | K70: 595.41 | L70: 48 | M70: 1889 | N70: 4800 | O70: 2911 | P70: 218.33 | Q70: 196.50 | R70: 21.83 | S70: 12 | T70: 1476 | U70: 2400 | V70: 924 | W70: 69.30 | X70: 62.37 | Y70: 6.93 | Z70: 7 | AA70: 1646 | AB70: 2100 | AC70: 454 | AD70: 43.13 | AE70: 38.82 | AF70: 4.31 | AG70: 1809 | AH70: 72.36 | AI70: 57.89 | AJ70: 14.47 | AK70: 4350.35 | AL70: 3707.40 | AM70: 642.95 | AN70: 3530 | AO70: 3215 | AP70: 177.40 | AS70: 177.40
A71: 华安县 | B71: 0.8 | C71: 0.8 | D71: 9706 | E71: 4326 | F71: 750 | G71: 950 | H71: 1138.92 | I71: 911.14 | K71: 227.78 | L71: 9 | M71: 291 | N71: 900 | O71: 609 | P71: 45.68 | Q71: 36.54 | R71: 9.14 | S71: 5 | T71: 743 | U71: 1000 | V71: 257 | W71: 19.28 | X71: 15.42 | Y71: 3.86 | Z71: 1 | AA71: 292 | AB71: 300 | AC71: 8 | AD71: 0.76 | AE71: 0.61 | AF71: 0.15 | AG71: 3828 | AH71: 153.12 | AI71: 122.50 | AJ71: 30.62 | AK71: 1357.76 | AL71: 1086.21 | AM71: 271.55 | AN71: 1087 | AO71: 990 | AP71: -0.79 | AS71: -0.79
A72: 龙海区 | B72: 0.4 | C72: 0.4 | D72: 44969 | E72: 18095 | F72: 750 | G72: 950 | H72: 5091.70 | I72: 2036.68 | K72: 3055.02 | L72: 22 | M72: 988 | N72: 2200 | O72: 1212 | P72: 90.90 | Q72: 36.36 | R72: 54.54 | S72: 54 | T72: 7807 | U72: 10800 | V72: 2993 | W72: 224.48 | X72: 89.79 | Y72: 134.69 | Z72: 2 | AA72: 266 | AB72: 600 | AC72: 334 | AD72: 31.73 | AE72: 12.69 | AF72: 19.04 | AG72: 3673 | AH72: 146.92 | AI72: 58.77 | AJ72: 88.15 | AK72: 5585.73 | AL72: 2234.29 | AM72: 3351.44 | AN72: 2060 | AO72: 1876 | AP72: 174.29 | AS72: 174.29
A73: 漳州高新技术产业开发区 | B73: 0.4 | C73: 0.4 | D73: 12846 | E73: 4381 | F73: 750 | G73: 950 | H73: 1379.65 | I73: 551.86 | K73: 827.79 | L73: 3 | M73: 202 | N73: 300 | O73: 98 | P73: 7.35 | Q73: 2.94 | R73: 4.41 | S73: 10 | T73: 1460 | U73: 2000 | V73: 540 | W73: 40.50 | X73: 16.20 | Y73: 24.30 | AG73: 1381 | AH73: 55.24 | AI73: 22.10 | AJ73: 33.14 | AK73: 1482.74 | AL73: 593.10 | AM73: 889.64 | AN73: 552 | AO73: 503 | AP73: 41.10 | AS73: 41.10
A74: 常山开发区 | B74: 0.8 | C74: 0.8 | D74: 2456 | E74: 1128 | F74: 750 | G74: 950 | H74: 291.36 | I74: 233.09 | K74: 58.27 | S74: 1 | T74: 104 | U74: 200 | V74: 96 | W74: 7.20 | X74: 5.76 | Y74: 1.44 | AG74: 208 | AH74: 8.32 | AI74: 6.66 | AJ74: 1.66 | AK74: 306.88 | AL74: 245.51 | AM74: 61.37 | AN74: 233 | AO74: 212 | AP74: 12.51 | AS74: 12.51
A75: 招商局经济技术开发区 | B75: 0.4 | C75: 0.4 | D75: 7673 | E75: 3807 | F75: 750 | G75: 950 | H75: 937.14 | I75: 374.86 | K75: 562.28 | AG75: 242 | AH75: 9.68 | AI75: 3.87 | AJ75: 5.81 | AK75: 946.82 | AL75: 378.73 | AM75: 568.09 | AN75: 334 | AO75: 304 | AP75: 44.73 | AS75: 44.73
A76: 漳州台商投资区 | B76: 0.4 | C76: 0.4 | D76: 23302 | E76: 10159 | F76: 750 | G76: 950 | H76: 2712.76 | I76: 1085.10 | K76: 1627.66 | S76: 8 | T76: 1287 | U76: 1600 | V76: 313 | W76: 23.48 | X76: 9.39 | Y76: 14.09 | AG76: 267 | AH76: 10.68 | AI76: 4.27 | AJ76: 6.41 | AK76: 2746.92 | AL76: 1098.76 | AM76: 1648.16 | AN76: 1018 | AO76: 927 | AP76: 80.76 | AS76: 80.76
A77: 南平市 | D77: 181786 | E77: 100178 | H77: 23150.9 | I77: 18778.02 | J77: 535.07 | K77: 4372.88 | L77: 164 | M77: 3659 | N77: 16400 | O77: 12741 | P77: 955.6 | Q77: 801.71 | R77: 153.89 | S77: 46 | T77: 6416 | U77: 9200 | V77: 2784.00 | W77: 208.84 | X77: 174.87 | Y77: 33.97 | Z77: 68 | AA77: 10511 | AB77: 20400 | AC77: 9889 | AD77: 939.48 | AE77: 802.99 | AF77: 136.49 | AG77: 11482 | AH77: 459.28 | AI77: 367.43 | AJ77: 91.85 | AK77: 25714.10 | AL77: 20925.02 | AM77: 4789.08 | AN77: 20661 | AO77: 18819 | AP77: 264.02 | AS77: 264.02
A78: 市本级 | B78: 0.6 | C78: 0.6 | D78: 10654 | E78: 6207 | F78: 750 | G78: 950 | H78: 1388.72 | I78: 833.23 | K78: 555.49 | Z78: 1 | AA78: 129 | AB78: 300 | AC78: 171 | AD78: 16.25 | AE78: 9.75 | AF78: 6.50 | AK78: 1404.97 | AL78: 842.98 | AM78: 561.99 | AN78: 756 | AO78: 689 | AP78: 86.98 | AS78: 86.98
A79: 延平区 | B79: 0.8 | C79: 0.8 | D79: 21035 | E79: 10418 | F79: 750 | G79: 950 | H79: 2567.34 | I79: 2053.87 | K79: 513.47 | L79: 43 | M79: 800 | N79: 4300 | O79: 3500 | P79: 262.50 | Q79: 210.00 | R79: 52.50 | S79: 6 | T79: 865 | U79: 1200 | V79: 335 | W79: 25.13 | X79: 20.10 | Y79: 5.03 | Z79: 9 | AA79: 1585 | AB79: 2700 | AC79: 1115 | AD79: 105.93 | AE79: 84.74 | AF79: 21.19 | AG79: 893 | AH79: 35.72 | AI79: 28.58 | AJ79: 7.14 | AK79: 2996.62 | AL79: 2397.29 | AM79: 599.33 | AN79: 2401 | AO79: 2187 | AP79: -3.71 | AS79: -3.71
A80: 顺昌县 | B80: 0.8 | C80: 0.8 | D80: 10019 | E80: 5285 | F80: 750 | G80: 950 | H80: 1253.50 | I80: 1002.80 | K80: 250.70 | L80: 9 | M80: 166 | N80: 900 | O80: 734 | P80: 55.05 | Q80: 44.04 | R80: 11.01 | S80: 5 | T80: 718 | U80: 1000 | V80: 282 | W80: 21.15 | X80: 16.92 | Y80: 4.23 | Z80: 10 | AA80: 1425 | AB80: 3000 | AC80: 1575 | AD80: 149.63 | AE80: 119.70 | AF80: 29.93 | AG80: 617 | AH80: 24.68 | AI80: 19.74 | AJ80: 4.94 | AK80: 1504.01 | AL80: 1203.20 | AM80: 300.81 | AN80: 1166 | AO80: 1062 | AP80: 37.20 | AS80: 37.20
A81: 浦城县 | B81: 0.8 | C81: 0.9 | D81: 15520 | E81: 11184 | F81: 750 | G81: 950 | H81: 2226.48 | I81: 1888.00 | J81: 106.82 | K81: 338.48 | L81: 16 | M81: 293 | N81: 1600 | O81: 1307 | P81: 98.03 | Q81: 88.23 | R81: 9.80 | S81: 6 | T81: 981 | U81: 1200 | V81: 219 | W81: 16.43 | X81: 14.79 | Y81: 1.64 | Z81: 10 | AA81: 1540 | AB81: 3000 | AC81: 1460 | AD81: 138.70 | AE81: 124.83 | AF81: 13.87 | AG81: 630 | AH81: 25.20 | AI81: 20.16 | AJ81: 5.04 | AK81: 2504.84 | AL81: 2136.01 | AM81: 368.83 | AN81: 2178 | AO81: 1984 | AP81: -41.99 | AS81: -41.99
A82: 光泽县 | B82: 0.8 | C82: 0.9 | D82: 8260 | E82: 4540 | F82: 750 | G82: 950 | H82: 1050.80 | I82: 891.84 | J82: 51.20 | K82: 158.96 | L82: 15 | M82: 169 | N82: 1500 | O82: 1331 | P82: 99.83 | Q82: 89.85 | R82: 9.98 | S82: 1 | T82: 173 | U82: 200 | V82: 27 | W82: 2.03 | X82: 1.83 | Y82: 0.20 | Z82: 7 | AA82: 797 | AB82: 2100 | AC82: 1303 | AD82: 123.79 | AE82: 111.41 | AF82: 12.38 | AG82: 1044 | AH82: 41.76 | AI82: 33.41 | AJ82: 8.35 | AK82: 1318.21 | AL82: 1128.34 | AM82: 189.87 | AN82: 1132 | AO82: 1031 | AP82: -3.66 | AS82: -3.66
A83: 松溪县 | B83: 0.8 | C83: 0.8 | D83: 9765 | E83: 5842 | F83: 750 | G83: 950 | H83: 1287.37 | I83: 1029.89 | K83: 257.48 | L83: 2 | M83: 68 | N83: 200 | O83: 132 | P83: 9.90 | Q83: 7.92 | R83: 1.98 | S83: 4 | T83: 513 | U83: 800 | V83: 287 | W83: 21.53 | X83: 17.22 | Y83: 4.31 | Z83: 5 | AA83: 953 | AB83: 1500 | AC83: 547 | AD83: 51.97 | AE83: 41.58 | AF83: 10.39 | AG83: 413 | AH83: 16.52 | AI83: 13.22 | AJ83: 3.30 | AK83: 1387.29 | AL83: 1109.83 | AM83: 277.46 | AN83: 1073 | AO83: 977 | AP83: 36.83 | AS83: 36.83
A84: 政和县 | B84: 0.8 | C84: 0.8 | D84: 14076 | E84: 8413 | F84: 750 | G84: 950 | H84: 1854.94 | I84: 1483.95 | K84: 370.99 | L84: 13 | M84: 467 | N84: 1300 | O84: 833 | P84: 62.48 | Q84: 49.98 | R84: 12.50 | S84: 6 | T84: 811 | U84: 1200 | V84: 389 | W84: 29.18 | X84: 23.34 | Y84: 5.84 | Z84: 4 | AA84: 628 | AB84: 1200 | AC84: 572 | AD84: 54.34 | AE84: 43.47 | AF84: 10.87 | AG84: 922 | AH84: 36.88 | AI84: 29.50 | AJ84: 7.38 | AK84: 2037.82 | AL84: 1630.24 | AM84: 407.58 | AN84: 1611 | AO84: 1467 | AP84: 19.24 | AS84: 19.24
A85: 邵武市 | B85: 0.8 | C85: 0.9 | D85: 18973 | E85: 9508 | F85: 750 | G85: 950 | H85: 2326.24 | I85: 1974.91 | J85: 113.92 | K85: 351.33 | L85: 10 | M85: 318 | N85: 1000 | O85: 682 | P85: 51.15 | Q85: 46.04 | R85: 5.11 | S85: 4 | T85: 575 | U85: 800 | V85: 225 | W85: 16.88 | X85: 15.19 | Y85: 1.69 | Z85: 9 | AA85: 816 | AB85: 2700 | AC85: 1884 | AD85: 178.98 | AE85: 161.08 | AF85: 17.90 | AG85: 758 | AH85: 30.32 | AI85: 24.26 | AJ85: 6.06 | AK85: 2603.57 | AL85: 2221.48 | AM85: 382.09 | AN85: 2148 | AO85: 1957 | AP85: 73.48 | AS85: 73.48
A86: 武夷山市 | B86: 0.8 | C86: 0.9 | D86: 19383 | E86: 8778 | F86: 750 | G86: 950 | H86: 2287.64 | I86: 1942.75 | J86: 112.64 | K86: 344.89 | L86: 11 | M86: 317 | N86: 1100 | O86: 783 | P86: 58.73 | Q86: 52.86 | R86: 5.87 | S86: 6 | T86: 766 | U86: 1200 | V86: 434 | W86: 32.55 | X86: 29.30 | Y86: 3.25 | Z86: 5 | AA86: 794 | AB86: 1500 | AC86: 706 | AD86: 67.07 | AE86: 60.36 | AF86: 6.71 | AG86: 905 | AH86: 36.20 | AI86: 28.96 | AJ86: 7.24 | AK86: 2482.19 | AL86: 2114.23 | AM86: 367.96 | AN86: 2019 | AO86: 1839 | AP86: 95.23 | AS86: 95.23
A87: 建瓯市 | B87: 0.8 | C87: 0.8 | D87: 29388 | E87: 17093 | F87: 750 | G87: 950 | H87: 3827.94 | I87: 3062.35 | K87: 765.59 | L87: 33 | M87: 721 | N87: 3300 | O87: 2579 | P87: 193.43 | Q87: 154.74 | R87: 38.69 | S87: 6 | T87: 749 | U87: 1200 | V87: 451 | W87: 33.83 | X87: 27.06 | Y87: 6.77 | Z87: 3 | AA87: 746 | AB87: 900 | AC87: 154 | AD87: 14.63 | AE87: 11.70 | AF87: 2.93 | AG87: 2963 | AH87: 118.52 | AI87: 94.82 | AJ87: 23.70 | AK87: 4188.35 | AL87: 3350.67 | AM87: 837.68 | AN87: 3433 | AO87: 3127 | AP87: -82.33 | AS87: =AP87-AQ87-AR87 -> -82.33
A88: 建阳区 | B88: 0.8 | C88: 0.9 | D88: 24713 | E88: 12910 | F88: 750 | G88: 950 | H88: 3079.93 | I88: 2614.43 | J88: 150.49 | K88: 465.50 | L88: 12 | M88: 340 | N88: 1200 | O88: 860 | P88: 64.50 | Q88: 58.05 | R88: 6.45 | S88: 2 | T88: 265 | U88: 400 | V88: 135 | W88: 10.13 | X88: 9.12 | Y88: 1.01 | Z88: 5 | AA88: 1098 | AB88: 1500 | AC88: 402 | AD88: 38.19 | AE88: 34.37 | AF88: 3.82 | AG88: 2337 | AH88: 93.48 | AI88: 74.78 | AJ88: 18.70 | AK88: 3286.23 | AL88: 2790.75 | AM88: 495.48 | AN88: 2744 | AO88: 2499 | AP88: 46.75 | AS88: 46.75
A89: 龙岩市 | D89: 282251 | E89: 114763 | H89: 32071.32 | I89: 24663.66 | J89: 3154.77 | K89: 7407.66 | L89: 144 | M89: 5139 | N89: 14400 | O89: 9261 | P89: 694.59 | Q89: 622.29 | R89: 72.30 | S89: 69 | T89: 9413 | U89: 13800 | V89: 4387.00 | W89: 329.05 | X89: 296.16 | Y89: 32.89 | Z89: 62 | AA89: 10333 | AB89: 18600 | AC89: 8267 | AD89: 785.38 | AE89: 699.71 | AF89: 85.67 | AG89: 30897 | AH89: 1235.88 | AI89: 964.71 | AJ89: 271.17 | AK89: 35116.22 | AL89: 27246.53 | AM89: 7869.69 | AN89: 25719 | AO89: 23428 | AP89: 1527.53 | AS89: 1527.53
A90: 市本级 | B90: 0.4 | C90: 0.4 | D90: 18642 | E90: 6512 | F90: 750 | G90: 950 | H90: 2016.79 | I90: 806.72 | K90: 1210.07 | L90: 1 | M90: 24 | N90: 100 | O90: 76 | P90: 5.70 | Q90: 2.28 | R90: 3.42 | Z90: 1 | AA90: 150 | AB90: 300 | AC90: 150 | AD90: 14.25 | AE90: 5.70 | AF90: 8.55 | AG90: 174 | AH90: 6.96 | AI90: 2.78 | AJ90: 4.18 | AK90: 2043.70 | AL90: 817.48 | AM90: 1226.22 | AN90: 706 | AO90: 643 | AP90: 111.48 | AS90: 111.48
A91: 新罗区 | B91: 0.4 | C91: 0.9 | D91: 77308 | E91: 26900 | F91: 750 | G91: 950 | H91: 8353.60 | I91: 5425.60 | J91: 2084.16 | K91: 2928.00 | L91: 6 | M91: 415 | N91: 600 | O91: 185 | P91: 13.88 | Q91: 12.49 | R91: 1.39 | S91: 11 | T91: 1636 | U91: 2200 | V91: 564 | W91: 42.30 | X91: 38.07 | Y91: 4.23 | Z91: 5 | AA91: 612 | AB91: 1500 | AC91: 888 | AD91: 84.36 | AE91: 75.92 | AF91: 8.44 | AG91: 1325 | AH91: 53.00 | AI91: 21.20 | AJ91: 31.80 | AK91: 8547.14 | AL91: 5573.28 | AM91: 2973.86 | AN91: 5093 | AO91: 4639 | AP91: 480.28 | AS91: 480.28
A92: 长汀县 | B92: 0.8 | C92: 0.9 | D92: 44143 | E92: 19729 | F92: 750 | G92: 950 | H92: 5184.98 | I92: 4403.47 | J92: 255.49 | K92: 781.51 | L92: 31 | M92: 1284 | N92: 3100 | O92: 1816 | P92: 136.20 | Q92: 122.58 | R92: 13.62 | S92: 12 | T92: 1707 | U92: 2400 | V92: 693 | W92: 51.98 | X92: 46.78 | Y92: 5.20 | Z92: 8 | AA92: 1654 | AB92: 2400 | AC92: 746 | AD92: 70.87 | AE92: 63.78 | AF92: 7.09 | AG92: 5213 | AH92: 208.52 | AI92: 166.82 | AJ92: 41.70 | AK92: 5652.55 | AL92: 4803.43 | AM92: 849.12 | AN92: 4591 | AO92: 4182 | AP92: 212.43 | AS92: 212.43
A93: 永定区 | B93: 0.8 | C93: 0.9 | D93: 29366 | E93: 15144 | F93: 750 | G93: 950 | H93: 3641.13 | I93: 3090.94 | J93: 178.04 | K93: 550.19 | L93: 26 | M93: 1317 | N93: 2600 | O93: 1283 | P93: 96.23 | Q93: 86.61 | R93: 9.62 | S93: 11 | T93: 1417 | U93: 2200 | V93: 783 | W93: 58.73 | X93: 52.86 | Y93: 5.87 | Z93: 13 | AA93: 1999 | AB93: 3900 | AC93: 1901 | AD93: 180.60 | AE93: 162.54 | AF93: 18.06 | AG93: 9652 | AH93: 386.08 | AI93: 308.86 | AJ93: 77.22 | AK93: 4362.77 | AL93: 3701.81 | AM93: 660.96 | AN93: 3600 | AO93: 3279 | AP93: 101.81 | AS93: 101.81
A94: 上杭县 | B94: 0.8 | C94: 0.9 | D94: 36824 | E94: 15274 | F94: 750 | G94: 950 | H94: 4212.83 | I94: 3578.66 | J94: 208.39 | K94: 634.17 | L94: 18 | M94: 518 | N94: 1800 | O94: 1282 | P94: 96.15 | Q94: 86.54 | R94: 9.61 | S94: 9 | T94: 1113 | U94: 1800 | V94: 687 | W94: 51.53 | X94: 46.38 | Y94: 5.15 | Z94: 7 | AA94: 1346 | AB94: 2100 | AC94: 754 | AD94: 71.63 | AE94: 64.47 | AF94: 7.16 | AG94: 6847 | AH94: 273.88 | AI94: 219.10 | AJ94: 54.78 | AK94: 4706.02 | AL94: 3995.15 | AM94: 710.87 | AN94: 3797 | AO94: 3459 | AP94: 198.15 | AS94: 198.15
A95: 武平县 | B95: 0.8 | C95: 0.9 | D95: 27550 | E95: 10539 | F95: 750 | G95: 950 | H95: 3067.46 | I95: 2606.32 | J95: 152.36 | K95: 461.14 | L95: 9 | M95: 418 | N95: 900 | O95: 482 | P95: 36.15 | Q95: 32.54 | R95: 3.61 | S95: 9 | T95: 1097 | U95: 1800 | V95: 703 | W95: 52.73 | X95: 47.46 | Y95: 5.27 | Z95: 8 | AA95: 1617 | AB95: 2400 | AC95: 783 | AD95: 74.39 | AE95: 66.95 | AF95: 7.44 | AG95: 3821 | AH95: 152.84 | AI95: 122.27 | AJ95: 30.57 | AK95: 3383.57 | AL95: 2875.54 | AM95: 508.03 | AN95: 2741 | AO95: 2497 | AP95: 134.54 | AS95: 134.54
A96: 连城县 | B96: 0.8 | C96: 0.9 | D96: 25315 | E96: 9375 | F96: 750 | G96: 950 | H96: 2789.25 | I96: 2370.16 | J96: 138.76 | K96: 419.09 | L96: 26 | M96: 659 | N96: 2600 | O96: 1941 | P96: 145.58 | Q96: 131.02 | R96: 14.56 | S96: 9 | T96: 1314 | U96: 1800 | V96: 486 | W96: 36.45 | X96: 32.81 | Y96: 3.64 | Z96: 8 | AA96: 872 | AB96: 2400 | AC96: 1528 | AD96: 145.16 | AE96: 130.64 | AF96: 14.52 | AG96: 1362 | AH96: 54.48 | AI96: 43.58 | AJ96: 10.90 | AK96: 3170.92 | AL96: 2708.21 | AM96: 462.71 | AN96: 2515 | AO96: 2291 | AP96: 193.21 | AS96: 193.21
A97: 漳平市 | B97: 0.8 | C97: 0.9 | D97: 23103 | E97: 11290 | F97: 750 | G97: 950 | H97: 2805.28 | I97: 2381.79 | J97: 137.57 | K97: 423.49 | L97: 27 | M97: 504 | N97: 2700 | O97: 2196 | P97: 164.70 | Q97: 148.23 | R97: 16.47 | S97: 8 | T97: 1129 | U97: 1600 | V97: 471 | W97: 35.33 | X97: 31.80 | Y97: 3.53 | Z97: 12 | AA97: 2083 | AB97: 3600 | AC97: 1517 | AD97: 144.12 | AE97: 129.71 | AF97: 14.41 | AG97: 2503 | AH97: 100.12 | AI97: 80.10 | AJ97: 20.02 | AK97: 3249.55 | AL97: 2771.63 | AM97: 477.92 | AN97: 2676 | AO97: 2438 | AP97: 95.63 | AS97: 95.63
A98: 宁德市 | D98: 271094 | E98: 133744 | H98: 33037.75 | I98: 25860.68 | J98: 0 | K98: 7177.07 | L98: 169 | M98: 4625 | N98: 16900 | O98: 12275 | P98: 920.65 | Q98: 736.5 | R98: 184.15 | S98: 33 | T98: 4552 | U98: 6600 | V98: 2048 | W98: 153.62 | X98: 122.88 | Y98: 30.74 | Z98: 65 | AA98: 8930 | AB98: 19500 | AC98: 10570 | AD98: 1004.18 | AE98: 803.34 | AF98: 200.84 | AG98: 11127 | AH98: 445.08 | AI98: 356.08 | AJ98: 89 | AK98: 35561.28 | AL98: 27879.48 | AM98: 7681.8 | AN98: 26935 | AO98: 24533 | AP98: 944.48 | AS98: 944.48
A99: 市本级 | B99: 0.6 | C99: 0.6 | D99: 7658 | E99: 5194 | F99: 750 | G99: 950 | H99: 1067.78 | I99: 640.67 | K99: 427.11 | AK99: 1067.78 | AL99: 640.67 | AM99: 427.11 | AN99: 604 | AO99: 550 | AP99: 36.67 | AS99: 36.67
A100: 蕉城区 | B100: 0.8 | C100: 0.8 | D100: 39853 | E100: 19122 | F100: 750 | G100: 950 | H100: 4805.57 | I100: 3844.45 | K100: 961.12 | L100: 12 | M100: 485 | N100: 1200 | O100: 715 | P100: 53.63 | Q100: 42.90 | R100: 10.73 | S100: 5 | T100: 738 | U100: 1000 | V100: 262 | W100: 19.65 | X100: 15.72 | Y100: 3.93 | Z100: 10 | AA100: 1161 | AB100: 3000 | AC100: 1839 | AD100: 174.71 | AE100: 139.77 | AF100: 34.94 | AG100: 530 | AH100: 21.20 | AI100: 16.96 | AJ100: 4.24 | AK100: 5074.76 | AL100: 4059.80 | AM100: 1014.96 | AN100: 3968 | AO100: 3614 | AP100: 91.80 | AS100: 91.80
A101: 东侨开发区 | B101: 0.6 | C101: 0.6 | D101: 15816 | E101: 6248 | F101: 750 | G101: 950 | H101: 1779.76 | I101: 1067.86 | K101: 711.90 | AK101: 1779.76 | AL101: 1067.86 | AM101: 711.90 | AN101: 901 | AO101: 821 | AP101: 166.86 | AS101: 166.86
A102: 霞浦县 | B102: 0.8 | C102: 0.8 | D102: 43439 | E102: 22205 | F102: 750 | G102: 950 | H102: 5367.40 | I102: 4293.92 | K102: 1073.48 | L102: 55 | M102: 1435 | N102: 5500 | O102: 4065 | P102: 304.88 | Q102: 243.90 | R102: 60.98 | S102: 4 | T102: 482 | U102: 800 | V102: 318 | W102: 23.85 | X102: 19.08 | Y102: 4.77 | Z102: 7 | AA102: 871 | AB102: 2100 | AC102: 1229 | AD102: 116.76 | AE102: 93.41 | AF102: 23.35 | AG102: 2171 | AH102: 86.84 | AI102: 69.47 | AJ102: 17.37 | AK102: 5899.73 | AL102: 4719.78 | AM102: 1179.95 | AN102: 4554 | AO102: 4148 | AP102: 165.78 | AS102: 165.78
A103: 古田县 | B103: 0.8 | C103: 0.8 | D103: 23313 | E103: 10638 | F103: 750 | G103: 950 | H103: 2759.09 | I103: 2207.27 | K103: 551.82 | L103: 19 | M103: 471 | N103: 1900 | O103: 1429 | P103: 107.18 | Q103: 85.74 | R103: 21.44 | S103: 4 | T103: 601 | U103: 800 | V103: 199 | W103: 14.93 | X103: 11.94 | Y103: 2.99 | Z103: 8 | AA103: 1359 | AB103: 2400 | AC103: 1041 | AD103: 98.90 | AE103: 79.12 | AF103: 19.78 | AG103: 2449 | AH103: 97.96 | AI103: 78.37 | AJ103: 19.59 | AK103: 3078.06 | AL103: 2462.44 | AM103: 615.62 | AN103: 2363 | AO103: 2152 | AP103: 99.44 | AS103: 99.44
A104: 屏南县 | B104: 0.8 | C104: 0.8 | D104: 11043 | E104: 5429 | F104: 750 | G104: 950 | H104: 1343.98 | I104: 1075.18 | K104: 268.80 | L104: 15 | M104: 498 | N104: 1500 | O104: 1002 | P104: 75.15 | Q104: 60.12 | R104: 15.03 | S104: 2 | T104: 359 | U104: 400 | V104: 41 | W104: 3.08 | X104: 2.46 | Y104: 0.62 | Z104: 8 | AA104: 1265 | AB104: 2400 | AC104: 1135 | AD104: 107.83 | AE104: 86.26 | AF104: 21.57 | AG104: 1003 | AH104: 40.12 | AI104: 32.10 | AJ104: 8.02 | AK104: 1570.16 | AL104: 1256.12 | AM104: 314.04 | AN104: 1225 | AO104: 1116 | AP104: 31.12 | AS104: 31.12
A105: 寿宁县 | B105: 0.8 | C105: 0.8 | D105: 11880 | E105: 5810 | F105: 750 | G105: 950 | H105: 1442.95 | I105: 1154.36 | K105: 288.59 | L105: 15 | M105: 307 | N105: 1500 | O105: 1193 | P105: 89.48 | Q105: 71.58 | R105: 17.90 | S105: 5 | T105: 617 | U105: 1000 | V105: 383 | W105: 28.73 | X105: 22.98 | Y105: 5.75 | Z105: 10 | AA105: 1108 | AB105: 3000 | AC105: 1892 | AD105: 179.74 | AE105: 143.79 | AF105: 35.95 | AG105: 378 | AH105: 15.12 | AI105: 12.10 | AJ105: 3.02 | AK105: 1756.02 | AL105: 1404.81 | AM105: 351.21 | AN105: 1380 | AO105: 1257 | AP105: 24.81 | AS105: 24.81
A106: 周宁县 | B106: 0.8 | C106: 0.8 | D106: 9844 | E106: 6453 | F106: 750 | G106: 950 | H106: 1351.34 | I106: 1081.07 | K106: 270.27 | L106: 9 | M106: 432 | N106: 900 | O106: 468 | P106: 35.10 | Q106: 28.08 | R106: 7.02 | S106: 3 | T106: 406 | U106: 600 | V106: 194 | W106: 14.55 | X106: 11.64 | Y106: 2.91 | Z106: 7 | AA106: 787 | AB106: 2100 | AC106: 1313 | AD106: 124.74 | AE106: 99.79 | AF106: 24.95 | AG106: 231 | AH106: 9.24 | AI106: 7.39 | AJ106: 1.85 | AK106: 1534.97 | AL106: 1227.97 | AM106: 307.00 | AN106: 1206 | AO106: 1098 | AP106: 21.97 | AS106: 21.97
A107: 柘荣县 | B107: 0.8 | C107: 0.8 | D107: 8352 | E107: 4348 | F107: 750 | G107: 950 | H107: 1039.46 | I107: 831.57 | K107: 207.89 | L107: 7 | M107: 157 | N107: 700 | O107: 543 | P107: 40.73 | Q107: 32.58 | R107: 8.15 | AG107: 419 | AH107: 16.76 | AI107: 13.41 | AJ107: 3.35 | AK107: 1096.95 | AL107: 877.56 | AM107: 219.39 | AN107: 863 | AO107: 786 | AP107: 14.56 | AS107: 14.56
A108: 福安市 | B108: 0.8 | C108: 0.8 | D108: 49201 | E108: 25189 | F108: 750 | G108: 950 | H108: 6083.03 | I108: 4866.42 | K108: 1216.61 | L108: 20 | M108: 610 | N108: 2000 | O108: 1390 | P108: 104.25 | Q108: 83.40 | R108: 20.85 | S108: 7 | T108: 1031 | U108: 1400 | V108: 369 | W108: 27.68 | X108: 22.14 | Y108: 5.54 | Z108: 9 | AA108: 1748 | AB108: 2700 | AC108: 952 | AD108: 90.44 | AE108: 72.35 | AF108: 18.09 | AG108: 2718 | AH108: 108.72 | AI108: 86.98 | AJ108: 21.74 | AK108: 6414.12 | AL108: 5131.29 | AM108: 1282.83 | AN108: 5072 | AO108: 4620 | AP108: 59.29 | AS108: 59.29
A109: 福鼎市 | B109: 0.8 | C109: 0.8 | D109: 50695 | E109: 23108 | F109: 750 | G109: 950 | H109: 5997.39 | I109: 4797.91 | K109: 1199.48 | L109: 17 | M109: 230 | N109: 1700 | O109: 1470 | P109: 110.25 | Q109: 88.20 | R109: 22.05 | S109: 3 | T109: 318 | U109: 600 | V109: 282 | W109: 21.15 | X109: 16.92 | Y109: 4.23 | Z109: 6 | AA109: 631 | AB109: 1800 | AC109: 1169 | AD109: 111.06 | AE109: 88.85 | AF109: 22.21 | AG109: 1228 | AH109: 49.12 | AI109: 39.30 | AJ109: 9.82 | AK109: 6288.97 | AL109: 5031.18 | AM109: 1257.79 | AN109: 4799 | AO109: 4371 | AP109: 232.18 | AS109: 232.18
A110: 平潭综合实验区 | B110: 0.8 | C110: 0.8 | D110: 30590 | E110: 15039 | H110: 3722.96 | I110: 2978.36 | J110: 0.00 | K110: 744.60 | L110: 9 | M110: 521 | N110: 900 | O110: 379 | P110: 28.43 | Q110: 22.74 | R110: 5.69 | S110: 2 | T110: 275 | U110: 400 | V110: 125.00 | W110: 9.38 | X110: 7.50 | Y110: 1.88 | Z110: 8 | AA110: 857 | AB110: 2400 | AC110: 1543 | AD110: 146.59 | AE110: 117.27 | AF110: 29.32 | AG110: 296 | AH110: 11.84 | AI110: 9.47 | AJ110: 2.37 | AK110: 3919.20 | AL110: 3135.34 | AM110: 783.86 | AN110: 2985 | AO110: 2719 | AP110: 150.34 | AS110: 150.34
A111: 平潭综合实验区 | B111: 0.8 | C111: 0.8 | D111: 30590 | E111: 15039 | F111: 750 | G111: 950 | H111: 3722.96 | I111: 2978.36 | K111: 744.60 | L111: 9 | M111: 521 | N111: 900 | O111: 379 | P111: 28.43 | Q111: 22.74 | R111: 5.69 | S111: 2 | T111: 275 | U111: 400 | V111: 125 | W111: 9.38 | X111: 7.50 | Y111: 1.88 | Z111: 8 | AA111: 857 | AB111: 2400 | AC111: 1543 | AD111: 146.59 | AE111: 117.27 | AF111: 29.32 | AG111: 296 | AH111: 11.84 | AI111: 9.47 | AJ111: 2.37 | AK111: 3919.20 | AL111: 3135.34 | AM111: 783.86 | AN111: 2985 | AO111: 2719 | AP111: 150.34 | AS111: 150.34

Sheet 附件2
A1: 附件2
A2: 2025年义务教育学校学生免费提供作业本资金安排表
A3: 单位：万元
A4: 市、县（区）名称 | B4: 闽政[2016]16号省级补助比例 | C4: 小学在校学生数 | D4: 初中在校学生数 | E4: 2025年资金安排 | H4: 已提前下达资金 | I4: 本次下达省级资金
C5: 小计 | D5: 小计 | E5: 合计 | F5: 其中：省级 | G5: 其中：市县
A6: 全省合计 | C6: 3192251 | D6: 1481728 | E6: 15503.75 | F6: 8667.06 | G6: 6836.69 | H6: 7830 | I6: 837.06
A7: 福州市 | C7: 612927 | D7: 280619 | E7: 2961.26 | F7: 1070 | G7: 1891.26 | H7: 970 | I7: 100
A8: 市本级 | B8: 0.2 | C8: 31127 | D8: 58554 | E8: 327.6 | F8: 65.52 | G8: 262.08 | H8: 58 | I8: 7.52
A9: 鼓楼区 | B9: 0.2 | C9: 67738 | D9: 5016 | E9: 223.28 | F9: 44.66 | G9: 178.62 | H9: 39 | I9: 5.66
A10: 台江区 | B10: 0.2 | C10: 25332 | D10: 6087 | E10: 100.34 | F10: 20.07 | G10: 80.27 | H10: 18 | I10: 2.07
A11: 仓山区 | B11: 0.2 | C11: 82087 | D11: 22497 | E11: 336.25 | F11: 67.25 | G11: 269 | H11: 58 | I11: 9.25
A12: 马尾区 | B12: 0.2 | C12: 17014 | D12: 7734 | E12: 81.98 | F12: 16.4 | G12: 65.58 | H12: 15 | I12: 1.40
A13: 晋安区 | B13: 0.2 | C13: 49284 | D13: 15722 | E13: 210.74 | F13: 42.15 | G13: 168.59 | H13: 38 | I13: 4.15
A14: 闽侯县 | B14: 0.4 | C14: 53944 | D14: 23497 | E14: 255.82 | F14: 102.33 | G14: 153.49 | H14: 91 | I14: 11.33
A15: 连江县 | B15: 0.6 | C15: 45179 | D15: 24685 | E15: 234.28 | F15: 140.57 | G15: 93.71 | H15: 132 | I15: 8.57
A16: 罗源县 | B16: 0.6 | C16: 20847 | D16: 7352 | E16: 91.95 | F16: 55.17 | G16: 36.78 | H16: 50 | I16: 5.17
A17: 闽清县 | B17: 0.8 | C17: 18303 | D17: 9461 | E17: 92.75 | F17: 74.2 | G17: 18.55 | H17: 68 | I17: 6.20
A18: 永泰县 | B18: 0.8 | C18: 19447 | D18: 9894 | E18: 97.92 | F18: 78.34 | G18: 19.58 | H18: 72 | I18: 6.34
A19: 福清市 | B19: 0.4 | C19: 114031 | D19: 57719 | E19: 572.97 | F19: 229.19 | G19: 343.78 | H19: 210 | I19: 19.19
A20: 长乐区 | B20: 0.4 | C20: 52111 | D20: 26835 | E20: 263.67 | F20: 105.47 | G20: 158.2 | H20: 97 | I20: 8.47
A21: 高新区管委会 | B21: 0.4 | C21: 16483 | D21: 5566 | E21: 71.71 | F21: 28.68 | G21: 43.03 | H21: 24 | I21: 4.68
A22: 莆田市 | C22: 281913 | D22: 143826 | E22: 1421.04 | F22: 927.92 | G22: 493.12 | H22: 840 | I22: 87.92
A23: 市本级 | B23: 0.6 | C23: 11957 | D23: 13333 | E23: 89.2 | F23: 53.52 | G23: 35.68 | H23: 46 | I23: 7.52
A24: 城厢区 | B24: 0.6 | C24: 47652 | D24: 22292 | E24: 232.12 | F24: 139.27 | G24: 92.85 | H24: 123 | I24: 16.27
A25: 涵江区 | B25: 0.6 | C25: 37523 | D25: 16859 | E25: 180.01 | F25: 108.01 | G25: 72 | H25: 97 | I25: 11.01
A26: 荔城区 | B26: 0.6 | C26: 62161 | D26: 26536 | E26: 292.63 | F26: 175.58 | G26: 117.05 | H26: 156 | I26: 19.58
A27: 秀屿区 | B27: 0.6 | C27: 37035 | D27: 23972 | E27: 206.99 | F27: 124.19 | G27: 82.8 | H27: 117 | I27: 7.19
A28: 湄洲岛管委会 | B28: 0.6 | C28: 3129 | D28: 1373 | E28: 14.88 | F28: 8.93 | G28: 5.95 | H28: 8 | I28: 0.93
A29: 北岸管委会 | B29: 0.6 | C29: 6868 | D29: 2030 | E29: 28.72 | F29: 17.23 | G29: 11.49 | H29: 17 | I29: 0.23
A30: 仙游县 | B30: 0.8 | C30: 75588 | D30: 37431 | E30: 376.49 | F30: 301.19 | G30: 75.3 | H30: 276 | I30: 25.19
A31: 三明市 | C31: 214545 | D31: 111597 | E31: 1090.03 | F31: 808.97 | G31: 281.06 | H31: 733 | I31: 75.97
A32: 市本级 | B32: 0.6 | C32: 6559 | D32: 6026 | E32: 43.78 | F32: 26.27 | G32: 17.51 | H32: 19 | I32: 7.27
A33: 三元区 | B33: 0.8 | C33: 30287 | D33: 11870 | E33: 138.34 | F33: 110.67 | G33: 27.67 | H33: 98 | I33: 12.67
A34: 明溪县 | B34: 0.8 | C34: 6250 | D34: 2723 | E34: 29.64 | F34: 23.71 | G34: 5.93 | H34: 21 | I34: 2.71
A35: 清流县 | B35: 0.8 | C35: 9125 | D35: 5499 | E35: 49.37 | F35: 39.5 | G35: 9.87 | H35: 37 | I35: 2.50
A36: 宁化县 | B36: 0.8 | C36: 21580 | D36: 12852 | E36: 116.15 | F36: 92.92 | G36: 23.23 | H36: 86 | I36: 6.92
A37: 大田县 | B37: 0.8 | C37: 30839 | D37: 17610 | E37: 162.96 | F37: 130.37 | G37: 32.59 | H37: 119 | I37: 11.37
A38: 尤溪县 | B38: 0.8 | C38: 31581 | D38: 13252 | E38: 147.75 | F38: 118.2 | G38: 29.55 | H38: 105 | I38: 13.20
A39: 沙县区 | B39: 0.8 | C39: 21655 | D39: 12225 | E39: 113.87 | F39: 91.1 | G39: 22.77 | H39: 88 | I39: 3.10
A40: 将乐县 | B40: 0.8 | C40: 11858 | D40: 7065 | E40: 63.83 | F40: 51.06 | G40: 12.77 | H40: 47 | I40: 4.06
A41: 泰宁县 | B41: 0.8 | C41: 9280 | D41: 4504 | E41: 45.86 | F41: 36.69 | G41: 9.17 | H41: 33 | I41: 3.69
A42: 建宁县 | B42: 0.8 | C42: 7937 | D42: 4729 | E42: 42.73 | F42: 34.18 | G42: 8.55 | H42: 31 | I42: 3.18
A43: 永安市 | B43: 0.4 | C43: 27594 | D43: 13242 | E43: 135.75 | F43: 54.3 | G43: 81.45 | H43: 49 | I43: 5.30
A44: 泉州市 | C44: 859564 | D44: 391055 | E44: 4142.95 | F44: 1715.22 | G44: 2427.73 | H44: 1550 | I44: 165.22
A45: 市本级 | B45: 0.2 | C45: 15639 | D45: 18457 | E45: 120.75 | F45: 24.15 | G45: 96.6 | H45: 22 | I45: 2.15
A46: 鲤城区 | B46: 0.2 | C46: 43502 | D46: 17935 | E46: 202.25 | F46: 40.45 | G46: 161.8 | H46: 36 | I46: 4.45
A47: 丰泽区 | B47: 0.2 | C47: 53050 | D47: 15244 | E47: 220.13 | F47: 44.03 | G47: 176.1 | H47: 39 | I47: 5.03
A48: 洛江区 | B48: 0.2 | C48: 26526 | D48: 10145 | E48: 120.16 | F48: 24.03 | G48: 96.13 | H48: 21 | I48: 3.03
A49: 泉港区 | B49: 0.2 | C49: 34672 | D49: 16451 | E49: 169.82 | F49: 33.96 | G49: 135.86 | H49: 31 | I49: 2.96
A50: 惠安县 | B50: 0.4 | C50: 85770 | D50: 32269 | E50: 386.39 | F50: 154.56 | G50: 231.83 | H50: 135 | I50: 19.56
A51: 安溪县 | B51: 0.8 | C51: 91573 | D51: 54067 | E51: 490.99 | F51: 392.79 | G51: 98.2 | H51: 369 | I51: 23.79
A52: 永春县 | B52: 0.8 | C52: 33507 | D52: 19748 | E52: 179.51 | F52: 143.61 | G52: 35.9 | H52: 133 | I52: 10.61
A53: 德化县 | B53: 0.8 | C53: 38474 | D53: 13416 | E53: 169.09 | F53: 135.27 | G53: 33.82 | H53: 117 | I53: 18.27
A54: 石狮市 | B54: 0.2 | C54: 69195 | D54: 32315 | E54: 336.85 | F54: 67.37 | G54: 269.48 | H54: 60 | I54: 7.37
A55: 晋江市 | B55: 0.2 | C55: 195269 | D55: 84383 | E55: 923.34 | F55: 184.67 | G55: 738.67 | H55: 165 | I55: 19.67
A56: 南安市 | B56: 0.6 | C56: 146715 | D56: 66040 | E56: 704.31 | F56: 422.59 | G56: 281.72 | H56: 381 | I56: 41.59
A57: 台商投资区 | B57: 0.4 | C57: 25672 | D57: 10585 | E57: 119.36 | F57: 47.74 | G57: 71.62 | H57: 41 | I57: 6.74
A58: 漳州市 | C58: 457581 | D58: 190907 | E58: 2136.38 | F58: 1346.48 | G58: 789.9 | H58: 1198 | I58: 148.48
A59: 市本级 | B59: 0.4 | C59: 10877 | D59: 23382 | E59: 126.16 | F59: 50.46 | G59: 75.7 | H59: 47 | I59: 3.46
A60: 芗城区 | B60: 0.4 | C60: 46855 | D60: 8401 | E60: 174.17 | F60: 69.67 | G60: 104.5 | H60: 63 | I60: 6.67
A61: 龙文区 | B61: 0.4 | C61: 37165 | D61: 8722 | E61: 146.38 | F61: 58.55 | G61: 87.83 | H61: 47 | I61: 11.55
A62: 云霄县 | B62: 0.8 | C62: 32942 | D62: 13546 | E62: 153.01 | F62: 122.41 | G62: 30.6 | H62: 110 | I62: 12.41
A63: 漳浦县 | B63: 0.8 | C63: 68718 | D63: 27041 | E63: 314.32 | F63: 251.46 | G63: 62.86 | H63: 222 | I63: 29.46
A64: 古雷港经济开发区 | B64: 0.8 | C64: 19503 | D64: 6061 | E64: 82.75 | F64: 66.2 | G64: 16.55 | H64: 58 | I64: 8.20
A65: 诏安县 | B65: 0.8 | C65: 48498 | D65: 22496 | E65: 235.48 | F65: 188.38 | G65: 47.1 | H65: 170 | I65: 18.38
A66: 长泰区 | B66: 0.6 | C66: 21130 | D66: 8002 | E66: 95.4 | F66: 57.24 | G66: 38.16 | H66: 50 | I66: 7.24
A67: 东山县 | B67: 0.8 | C67: 19512 | D67: 7543 | E67: 88.71 | F67: 70.97 | G67: 17.74 | H67: 62 | I67: 8.97
A68: 南靖县 | B68: 0.8 | C68: 18368 | D68: 8368 | E68: 88.58 | F68: 70.86 | G68: 17.72 | H68: 63 | I68: 7.86
A69: 平和县 | B69: 0.8 | C69: 33061 | D69: 15449 | E69: 160.98 | F69: 128.78 | G69: 32.2 | H69: 117 | I69: 11.78
A70: 华安县 | B70: 0.8 | C70: 9706 | D70: 4326 | E70: 46.42 | F70: 37.14 | G70: 9.28 | H70: 36 | I70: 1.14
A71: 龙海区 | B71: 0.4 | C71: 44969 | D71: 18095 | E71: 207.29 | F71: 82.92 | G71: 124.37 | H71: 73 | I71: 9.92
A72: 漳州高新技术产业开发区 | B72: 0.4 | C72: 12846 | D72: 4381 | E72: 56.06 | F72: 22.42 | G72: 33.64 | H72: 20 | I72: 2.42
A73: 常山开发区 | B73: 0.8 | C73: 2456 | D73: 1128 | E73: 11.88 | F73: 9.5 | G73: 2.38 | H73: 8 | I73: 1.50
A74: 招商局经济技术开发区 | B74: 0.4 | C74: 7673 | D74: 3807 | E74: 38.25 | F74: 15.3 | G74: 22.95 | H74: 13 | I74: 2.30
A75: 漳州台商投资区 | B75: 0.4 | C75: 23302 | D75: 10159 | E75: 110.54 | F75: 44.22 | G75: 66.32 | H75: 39 | I75: 5.22
A76: 南平市 | C76: 181786 | D76: 100178 | E76: 946.08 | F76: 745.49 | G76: 200.59 | H76: 692 | I76: 53.49
A77: 市本级 | B77: 0.6 | C77: 10654 | D77: 6207 | E77: 56.79 | F77: 34.07 | G77: 22.72 | H77: 29 | I77: 5.07
A78: 延平区 | B78: 0.8 | C78: 21035 | D78: 10418 | E78: 104.78 | F78: 83.82 | G78: 20.96 | H78: 79 | I78: 4.82
A79: 顺昌县 | B79: 0.8 | C79: 10019 | D79: 5285 | E79: 51.2 | F79: 40.96 | G79: 10.24 | H79: 38 | I79: 2.96
A80: 浦城县 | B80: 0.8 | C80: 15520 | D80: 11184 | E80: 91.3 | F80: 73.04 | G80: 18.26 | H80: 71 | I80: 2.04
A81: 光泽县 | B81: 0.8 | C81: 8260 | D81: 4540 | E81: 42.94 | F81: 34.35 | G81: 8.59 | H81: 32 | I81: 2.35
A82: 松溪县 | B82: 0.8 | C82: 9765 | D82: 5842 | E82: 52.66 | F82: 42.13 | G82: 10.53 | H82: 39 | I82: 3.13
A83: 政和县 | B83: 0.8 | C83: 14076 | D83: 8413 | E83: 75.88 | F83: 60.7 | G83: 15.18 | H83: 57 | I83: 3.70
A84: 邵武市 | B84: 0.8 | C84: 18973 | D84: 9508 | E84: 94.95 | F84: 75.96 | G84: 18.99 | H84: 69 | I84: 6.96
A85: 武夷山市 | B85: 0.8 | C85: 19383 | D85: 8778 | E85: 93.26 | F85: 74.61 | G85: 18.65 | H85: 67 | I85: 7.61
A86: 建瓯市 | B86: 0.8 | C86: 29388 | D86: 17093 | E86: 156.54 | F86: 125.23 | G86: 31.31 | H86: 119 | I86: 6.23
A87: 建阳区 | B87: 0.8 | C87: 24713 | D87: 12910 | E87: 125.78 | F87: 100.62 | G87: 25.16 | H87: 92 | I87: 8.62
A88: 龙岩市 | C88: 282251 | D88: 114763 | E88: 1305.81 | F88: 876.07 | G88: 429.74 | H88: 776 | I88: 100.07
A89: 市本级 | B89: 0.4 | C89: 18642 | D89: 6512 | E89: 81.97 | F89: 32.79 | G89: 49.18 | H89: 27 | I89: 5.79
A90: 新罗区 | B90: 0.4 | C90: 77308 | D90: 26900 | E90: 339.52 | F90: 135.81 | G90: 203.71 | H90: 117 | I90: 18.81
A91: 长汀县 | B91: 0.8 | C91: 44143 | D91: 19729 | E91: 211.35 | F91: 169.08 | G91: 42.27 | H91: 151 | I91: 18.08
A92: 永定区 | B92: 0.8 | C92: 29366 | D92: 15144 | E92: 148.67 | F92: 118.94 | G92: 29.73 | H92: 108 | I92: 10.94
A93: 上杭县 | B93: 0.8 | C93: 36824 | D93: 15274 | E93: 171.57 | F93: 137.26 | G93: 34.31 | H93: 122 | I93: 15.26
A94: 武平县 | B94: 0.8 | C94: 27550 | D94: 10539 | E94: 124.81 | F94: 99.85 | G94: 24.96 | H94: 89 | I94: 10.85
A95: 连城县 | B95: 0.8 | C95: 25315 | D95: 9375 | E95: 113.45 | F95: 90.76 | G95: 22.69 | H95: 80 | I95: 10.76
A96: 漳平市 | B96: 0.8 | C96: 23103 | D96: 11290 | E96: 114.47 | F96: 91.58 | G96: 22.89 | H96: 82 | I96: 9.58
A97: 宁德市 | C97: 271094 | D97: 133744 | E97: 1348.27 | F97: 1055.37 | G97: 292.9 | H97: 961 | I97: 94.37
A98: 市本级 | B98: 0.6 | C98: 7658 | D98: 5194 | E98: 43.75 | F98: 26.25 | G98: 17.5 | H98: 23 | I98: 3.25
A99: 蕉城区 | B99: 0.8 | C99: 39853 | D99: 19122 | E99: 196.05 | F99: 156.84 | G99: 39.21 | H99: 146 | I99: 10.84
A100: 东侨开发区 | B100: 0.6 | C100: 15816 | D100: 6248 | E100: 72.44 | F100: 43.46 | G100: 28.98 | H100: 35 | I100: 8.46
A101: 霞浦县 | B101: 0.8 | C101: 43439 | D101: 22205 | E101: 219.14 | F101: 175.31 | G101: 43.83 | H101: 159 | I101: 16.31
A102: 古田县 | B102: 0.8 | C102: 23313 | D102: 10638 | E102: 112.49 | F102: 89.99 | G102: 22.5 | H102: 81 | I102: 8.99
A103: 屏南县 | B103: 0.8 | C103: 11043 | D103: 5429 | E103: 54.85 | F103: 43.88 | G103: 10.97 | H103: 40 | I103: 3.88
A104: 寿宁县 | B104: 0.8 | C104: 11880 | D104: 5810 | E104: 58.88 | F104: 47.1 | G104: 11.78 | H104: 44 | I104: 3.10
A105: 周宁县 | B105: 0.8 | C105: 9844 | D105: 6453 | E105: 55.34 | F105: 44.27 | G105: 11.07 | H105: 41 | I105: 3.27
A106: 柘荣县 | B106: 0.8 | C106: 8352 | D106: 4348 | E106: 42.45 | F106: 33.96 | G106: 8.49 | H106: 31 | I106: 2.96
A107: 福安市 | B107: 0.8 | C107: 49201 | D107: 25189 | E107: 248.36 | F107: 198.69 | G107: 49.67 | H107: 185 | I107: 13.69
A108: 福鼎市 | B108: 0.8 | C108: 50695 | D108: 23108 | E108: 244.52 | F108: 195.62 | G108: 48.9 | H108: 176 | I108: 19.62
A109: 平潭综合实验区 | B109: 0.8 | C109: 30590 | D109: 15039 | E109: 151.93 | F109: 121.54 | G109: 30.39 | H109: 110 | I109: 11.54
A110: 平潭综合实验区 | B110: 0.8 | C110: 30590 | D110: 15039 | E110: 151.93 | F110: 121.54 | G110: 30.39 | H110: 110 | I110: 11.54

Sheet 附件3
A1: 附件3
A2: 2025年义务教育学生营养改善专项资金安排表
A3: 单位：万元
A4: 市、县、区名称 | B4: 计划县类型 | D4: 分档适用省级补助比例 | E4: 2024年结算 | O4: 2025年资金情况
B5: 享受中央奖补的地方计划县 | C5: 非五类县 | E5: 学生营养改善计划 | M5: 闽财教指〔2024〕30号已下达2024年预拨资金 | N5: 应追补资金2024年（负数为追减资金） | O5: 2025年预算数 | R5: 2025年实际下达 | U5: 已提前下达2025年资金 | V5: 本次实际下达
E6: 总计 | F6: 其中：省级及以上资金 | G6: 五类县所需资金 | K6: 非五类县所需资金 | O6: 小计 | P6: 中央 | Q6: 省级 | R6: 小计 | S6: 中央 | T6: 省级 | V6: 小计 | W6: 中央 | X6: 省级
G7: 小计 | H7: 其中：中央资金 | I7: 其中：五类县中城乡学校 | K7: 小计 | L7: 其中：省级
I8: 小计 | J8: 其中：省级
A9: 全省合计 | B9: 66 | C9: 13 | E9: 17515.83 | F9: 13735.86 | G9: 16768.88 | H9: 13236.33 | I9: 223.38 | J9: 122.27 | K9: 746.95 | L9: 377.26 | M9: 15796 | N9: -2060.14 | O9: 15797.14 | P9: 15297.14 | Q9: 500 | R9: 13737 | S9: 13237 | T9: 500 | U9: 11057 | V9: 2680 | W9: 2180 | X9: 500
A10: 福州市 | B10: 7 | C10: 1 | D10: 4 | E10: 1182.64 | F10: 934.29 | G10: 1164.24 | H10: 929.84 | I10: 1.93 | J10: 0.77 | K10: 18.40 | L10: 3.68 | M10: 834 | N10: 100.29 | O10: 836.71 | P10: 831.71 | Q10: 5 | R10: 937 | S10: 932 | T10: 5 | U10: 566 | V10: 371 | W10: 366 | X10: 5
A11: 晋安区 | B11: 0 | C11: 1 | D11: 0.2 | E11: 18.40 | F11: 3.68 | K11: 18.40 | L11: 3.68 | M11: 15 | N11: -11.32 | O11: 15.32 | P11: 11.32 | Q11: 4 | R11: 4 | T11: 4 | U11: 9 | V11: -5 | W11: -9 | X11: 4
A12: 闽侯县 | B12: 1 | C12: 0 | D12: 0.4 | E12: 79.14 | F12: 63.31 | G12: 79.14 | H12: 63.31 | M12: 69 | N12: -5.69 | O12: 68.69 | P12: 68.69 | R12: 63 | S12: 63 | U12: 38 | V12: 25 | W12: 25
A13: 连江县 | B13: 1 | C13: 0 | D13: 0.6 | E13: 183.51 | F13: 146.80 | G13: 183.51 | H13: 146.80 | M13: 154 | N13: -7.20 | O13: 155.2 | P13: 155.2 | R13: 148 | S13: 148 | U13: 104 | V13: 44 | W13: 44
A14: 罗源县 | B14: 1 | C14: 0 | D14: 0.6 | E14: 39.74 | F14: 31.80 | G14: 39.74 | H14: 31.80 | M14: 10 | N14: 21.80 | O14: 10.2 | P14: 10.2 | R14: 32 | S14: 32 | U14: 20 | V14: 12 | W14: 12
A15: 闽清县 | B15: 1 | C15: 0 | D15: 0.8 | E15: 80.63 | F15: 64.51 | G15: 80.63 | H15: 64.51 | M15: 120 | N15: -55.49 | O15: 120.49 | P15: 120.49 | R15: 65 | S15: 65 | U15: 78 | V15: -13 | W15: -13
A16: 永泰县 | B16: 1 | C16: 0 | D16: 0.8 | E16: 85.84 | F16: 68.67 | G16: 85.84 | H16: 68.67 | M16: 113 | N16: -44.33 | O16: 113.33 | P16: 113.33 | R16: 69 | S16: 69 | U16: 70 | V16: -1 | W16: -1
A17: 福清市 | B17: 1 | C17: 0 | D17: 0.4 | E17: 632.27 | F17: 505.81 | G17: 632.27 | H17: 505.81 | M17: 314 | N17: 191.81 | O17: 314.19 | P17: 314.19 | R17: 506 | S17: 506 | U17: 221 | V17: 285 | W17: 285
A18: 长乐区 | B18: 1 | C18: 0 | D18: 0.4 | E18: 63.11 | F18: 49.71 | G18: 63.11 | H18: 48.94 | I18: 1.93 | J18: 0.77 | M18: 39 | N18: 10.71 | O18: 39.29 | P18: 38.29 | Q18: 1 | R18: 50 | S18: 49 | T18: 1 | U18: 26 | V18: 24 | W18: 23 | X18: 1
A19: 莆田市 | B19: 5 | C19: 3 | D19: 5.00 | E19: 2157.15 | F19: 1674.85 | G19: 1912.20 | H19: 1522.26 | I19: 9.36 | J19: 5.62 | K19: 244.95 | L19: 146.97 | M19: 1798 | N19: -123.15 | O19: 1796.15 | P19: 1644.15 | Q19: 152 | R19: 1673 | S19: 1521 | T19: 152 | U19: 1268 | V19: 405 | W19: 253 | X19: 152
A20: 莆田市本级 | B20: 0 | C20: 1 | D20: 0.6 | E20: 230.65 | F20: 138.39 | K20: 230.65 | L20: 138.39 | M20: 0 | N20: 138.39 | O20: -0.39 | P20: -138.39 | Q20: 138 | R20: 138 | T20: 138 | U20: 98 | V20: 40 | W20: -98 | X20: 138
A21: 城厢区 | B21: 1 | C21: 0 | D21: 0.6 | E21: 222.64 | F21: 177.95 | G21: 222.64 | H21: 177.47 | I21: 0.80 | J21: 0.48 | M21: 116 | N21: 61.95 | O21: 115.05 | P21: 115.05 | R21: 177 | S21: 177 | U21: 119 | V21: 58 | W21: 58
A22: 涵江区 | B22: 1 | C22: 0 | D22: 0.6 | E22: 58.81 | F22: 46.53 | G22: 58.81 | H22: 44.99 | I22: 2.57 | J22: 1.54 | M22: 79 | N22: -32.47 | O22: 79.47 | P22: 77.47 | Q22: 2 | R22: 47 | S22: 45 | T22: 2 | U22: 43 | V22: 4 | W22: 2 | X22: 2
A23: 荔城区 | B23: 1 | C23: 0 | D23: 0.6 | E23: 253.74 | F23: 201.80 | G23: 253.74 | H23: 198.20 | I23: 5.99 | J23: 3.60 | M23: 192 | N23: 9.80 | O23: 192.2 | P23: 188.2 | Q23: 4 | R23: 202 | S23: 198 | T23: 4 | U23: 125 | V23: 77 | W23: 73 | X23: 4
A24: 秀屿区 | B24: 1 | C24: 0 | D24: 0.6 | E24: 997.72 | F24: 798.17 | G24: 997.72 | H24: 798.17 | M24: 850 | N24: -51.83 | O24: 849.83 | P24: 849.83 | R24: 798 | S24: 798 | U24: 579 | V24: 219 | W24: 219
A25: 湄洲岛管委会 | B25: 0 | C25: 1 | D25: 0.6 | E25: 10.15 | F25: 6.09 | K25: 10.15 | L25: 6.09 | M25: 12 | N25: -5.91 | O25: 11.91 | P25: 5.91 | Q25: 6 | R25: 6 | T25: 6 | U25: 7 | V25: -1 | W25: -7 | X25: 6
A26: 北岸管委会 | B26: 0 | C26: 1 | D26: 0.6 | E26: 4.15 | F26: 2.49 | K26: 4.15 | L26: 2.49 | M26: 79 | N26: -76.51 | O26: 78.51 | P26: 76.51 | Q26: 2 | R26: 2 | T26: 2 | U26: 2 | W26: -2 | X26: 2
A27: 仙游县 | B27: 1 | C27: 0 | D27: 0.8 | E27: 379.29 | F27: 303.43 | G27: 379.29 | H27: 303.43 | M27: 470 | N27: -166.57 | O27: 469.57 | P27: 469.57 | R27: 303 | S27: 303 | U27: 295 | V27: 8 | W27: 8
A28: 三明市 | B28: 11 | C28: 0 | D28: 8.40 | E28: 2511.38 | F28: 2009.11 | G28: 2511.38 | H28: 1985.39 | I28: 29.65 | J28: 23.72 | K28: 0.00 | L28: 0.00 | M28: 2829 | N28: -819.89 | O28: 2828.89 | P28: 2804.89 | Q28: 24 | R28: 2009 | S28: 1985 | T28: 24 | U28: 1823 | V28: 186 | W28: 162 | X28: 24
A29: 三元区 | B29: 1 | C29: 0 | D29: 0.8 | E29: 63.89 | F29: 51.11 | G29: 63.89 | H29: 51.11 | M29: 68 | N29: -16.89 | O29: 67.89 | P29: 67.89 | R29: 51 | S29: 51 | U29: 47 | V29: 4 | W29: 4
A30: 明溪县 | B30: 1 | C30: 0 | D30: 0.8 | E30: 69.17 | F30: 55.34 | G30: 69.17 | H30: 55.34 | M30: 75 | N30: -19.66 | O30: 74.66 | P30: 74.66 | R30: 55 | S30: 55 | U30: 51 | V30: 4 | W30: 4
A31: 清流县 | B31: 1 | C31: 0 | D31: 0.8 | E31: 255.89 | F31: 204.71 | G31: 255.89 | H31: 204.71 | M31: 285 | N31: -80.29 | O31: 285.29 | P31: 285.29 | R31: 205 | S31: 205 | U31: 188 | V31: 17 | W31: 17
A32: 宁化县 | B32: 1 | C32: 0 | D32: 0.8 | E32: 370.56 | F32: 296.45 | G32: 370.56 | H32: 296.45 | M32: 480 | N32: -183.55 | O32: 479.55 | P32: 479.55 | R32: 296 | S32: 296 | U32: 293 | V32: 3 | W32: 3
A33: 大田县 | B33: 1 | C33: 0 | D33: 0.8 | E33: 626.41 | F33: 501.13 | G33: 626.41 | H33: 501.13 | M33: 620 | N33: -118.87 | O33: 619.87 | P33: 619.87 | R33: 501 | S33: 501 | U33: 439 | V33: 62 | W33: 62
A34: 尤溪县 | B34: 1 | C34: 0 | D34: 0.8 | E34: 412.91 | F34: 330.33 | G34: 412.91 | H34: 330.33 | M34: 500 | N34: -169.67 | O34: 499.67 | P34: 499.67 | R34: 330 | S34: 330 | U34: 306 | V34: 24 | W34: 24
A35: 沙县区 | B35: 1 | C35: 0 | D35: 0.8 | E35: 123.14 | F35: 98.51 | G35: 123.14 | H35: 74.79 | I35: 29.65 | J35: 23.72 | M35: 180 | N35: -81.49 | O35: 180.49 | P35: 156.49 | Q35: 24 | R35: 99 | S35: 75 | T35: 24 | U35: 110 | V35: -11 | W35: -35 | X35: 24
A36: 将乐县 | B36: 1 | C36: 0 | D36: 0.8 | E36: 72.58 | F36: 58.06 | G36: 72.58 | H36: 58.06 | M36: 105 | N36: -46.94 | O36: 104.94 | P36: 104.94 | R36: 58 | S36: 58 | U36: 61 | V36: -3 | W36: -3
A37: 泰宁县 | B37: 1 | C37: 0 | D37: 0.8 | E37: 130.92 | F37: 104.74 | G37: 130.92 | H37: 104.74 | M37: 149 | N37: -44.26 | O37: 149.26 | P37: 149.26 | R37: 105 | S37: 105 | U37: 96 | V37: 9 | W37: 9
A38: 建宁县 | B38: 1 | C38: 0 | D38: 0.8 | E38: 209.94 | F38: 167.96 | G38: 209.94 | H38: 167.96 | M38: 260 | N38: -92.04 | O38: 260.04 | P38: 260.04 | R38: 168 | S38: 168 | U38: 160 | V38: 8 | W38: 8
A39: 永安市 | B39: 1 | C39: 0 | D39: 0.4 | E39: 175.97 | F39: 140.77 | G39: 175.97 | H39: 140.77 | M39: 107 | N39: 33.77 | O39: 107.23 | P39: 107.23 | R39: 141 | S39: 141 | U39: 72 | V39: 69 | W39: 69
A40: 泉州市 | B40: 7 | C40: 2 | D40: 4.40 | E40: 3877.62 | F40: 3013.55 | G40: 3738.37 | H40: 2959.13 | I40: 39.46 | J40: 7.89 | K40: 139.25 | L40: 46.53 | M40: 1953 | N40: 1060.55 | O40: 1952.45 | P40: 1898.45 | Q40: 54 | R40: 3013 | S40: 2959 | T40: 54 | U40: 1821 | V40: 1192 | W40: 1138 | X40: 54
A41: 洛江区 | B41: 0 | C41: 1 | D41: 0.2 | E41: 45.85 | F41: 9.17 | K41: 45.85 | L41: 9.17 | M41: 12 | N41: -2.83 | O41: 11.83 | P41: 2.83 | Q41: 9 | R41: 9 | T41: 9 | U41: 8 | V41: 1 | W41: -8 | X41: 9
A42: 泉港区 | B42: 1 | C42: 0 | D42: 0.2 | E42: 210.19 | F42: 144.47 | G42: 210.19 | H42: 136.58 | I42: 39.46 | J42: 7.89 | M42: 66 | N42: 78.47 | O42: 66.53 | P42: 58.53 | Q42: 8 | R42: 145 | S42: 137 | T42: 8 | U42: 42 | V42: 103 | W42: 95 | X42: 8
A43: 惠安县 | B43: 1 | C43: 0 | D43: 0.4 | E43: 390.40 | F43: 312.32 | G43: 390.40 | H43: 312.32 | M43: 252 | N43: 60.32 | O43: 251.68 | P43: 251.68 | R43: 312 | S43: 312 | U43: 157 | V43: 155 | W43: 155
A44: 安溪县 | B44: 1 | C44: 0 | D44: 0.8 | E44: 998.83 | F44: 799.06 | G44: 998.83 | H44: 799.06 | M44: 369 | N44: 430.06 | O44: 368.94 | P44: 368.94 | R44: 799 | S44: 799 | U44: 806 | V44: -7 | W44: -7
A45: 永春县 | B45: 1 | C45: 0 | D45: 0.8 | E45: 166.56 | F45: 133.25 | G45: 166.56 | H45: 133.25 | M45: 187 | N45: -53.75 | O45: 186.75 | P45: 186.75 | R45: 133 | S45: 133 | U45: 124 | V45: 9 | W45: 9
A46: 德化县 | B46: 1 | C46: 0 | D46: 0.8 | E46: 20.30 | F46: 16.24 | G46: 20.30 | H46: 16.24 | M46: 20 | N46: -3.76 | O46: 19.76 | P46: 19.76 | R46: 16 | S46: 16 | U46: 13 | V46: 3 | W46: 3
A47: 晋江市 | B47: 1 | C47: 0 | D47: 0.2 | E47: 1189.66 | F47: 951.73 | G47: 1189.66 | H47: 951.73 | M47: 286 | N47: 665.73 | O47: 286.27 | P47: 286.27 | R47: 952 | S47: 952 | U47: 206 | V47: 746 | W47: 746
A48: 南安市 | B48: 1 | C48: 0 | D48: 0.6 | E48: 762.43 | F48: 609.95 | G48: 762.43 | H48: 609.95 | M48: 711 | N48: -101.05 | O48: 711.05 | P48: 711.05 | R48: 610 | S48: 610 | U48: 432 | V48: 178 | W48: 178
A49: 泉州市台商投资区 | B49: 0 | C49: 1 | D49: 0.4 | E49: 93.40 | F49: 37.36 | K49: 93.40 | L49: 37.36 | M49: 50 | N49: -12.64 | O49: 49.64 | P49: 12.64 | Q49: 37 | R49: 37 | S49: 0 | T49: 37 | U49: 33 | V49: 4 | W49: -33 | X49: 37
A50: 漳州市 | B50: 9 | C50: 6 | D50: 9.80 | E50: 2132.48 | F50: 1615.69 | G50: 1859.63 | H50: 1453.77 | I50: 42.43 | J50: 24.74 | K50: 272.85 | L50: 137.18 | M50: 2186 | N50: -570.31 | O50: 2186.31 | P50: 2024.31 | Q50: 162 | R50: 1616 | S50: 1454 | T50: 162 | U50: 1459 | V50: 157 | W50: -5 | X50: 162
A51: 芗城区 | B51: 1 | C51: 0 | D51: 0.4 | E51: 10.19 | F51: 7.33 | G51: 10.19 | H51: 6.51 | I51: 2.06 | J51: 0.82 | M51: 6 | N51: 1.33 | O51: 6.67 | P51: 5.67 | Q51: 1 | R51: 8 | S51: 7 | T51: 1 | U51: 1 | V51: 7 | W51: 6 | X51: 1
A52: 龙文区 | B52: 0 | C52: 1 | D52: 0.4 | E52: 82.85 | F52: 33.14 | K52: 82.85 | L52: 33.14 | M52: 17 | N52: 16.14 | O52: 16.86 | P52: -16.14 | Q52: 33 | R52: 33 | T52: 33 | U52: 21 | V52: 12 | W52: -21 | X52: 33
A53: 云霄县 | B53: 1 | C53: 0 | D53: 0.8 | E53: 229.67 | F53: 183.74 | G53: 229.67 | H53: 183.74 | M53: 255 | N53: -71.26 | O53: 255.26 | P53: 255.26 | R53: 184 | S53: 184 | U53: 167 | V53: 17 | W53: 17
A54: 漳浦县 | B54: 1 | C54: 0 | D54: 0.8 | E54: 275.05 | F54: 220.04 | G54: 275.05 | H54: 220.04 | M54: 350 | N54: -129.96 | O54: 349.96 | P54: 349.96 | R54: 220 | S54: 220 | U54: 228 | V54: -8 | W54: -8
A55: 古雷港经济开发区 | B55: 0 | C55: 1 | D55: 0.8 | E55: 14.55 | F55: 11.64 | K55: 14.55 | L55: 11.64 | M55: 44 | N55: -32.36 | O55: 44.36 | P55: 32.36 | Q55: 12 | R55: 12 | T55: 12 | U55: 26 | V55: -14 | W55: -26 | X55: 12
A56: 诏安县 | B56: 1 | C56: 0 | D56: 0.8 | E56: 185.86 | F56: 148.68 | G56: 185.86 | H56: 148.68 | M56: 328 | N56: -179.32 | O56: 328.32 | P56: 328.32 | R56: 149 | S56: 149 | U56: 212 | V56: -63 | W56: -63
A57: 长泰区 | B57: 1 | C57: 0 | D57: 0.6 | E57: 91.87 | F57: 65.72 | G57: 91.87 | H57: 42.40 | I57: 38.87 | J57: 23.32 | M57: 114 | N57: -48.28 | O57: 113.28 | P57: 90.28 | Q57: 23 | R57: 65 | S57: 42 | T57: 23 | U57: 71 | V57: -6 | W57: -29 | X57: 23
A58: 东山县 | B58: 0 | C58: 1 | D58: 0.8 | E58: 45.20 | F58: 36.16 | K58: 45.20 | L58: 36.16 | M58: 54 | N58: -17.84 | O58: 53.84 | P58: 17.84 | Q58: 36 | R58: 36 | T58: 36 | U58: 27 | V58: 9 | W58: -27 | X58: 36
A59: 南靖县 | B59: 1 | C59: 0 | D59: 0.8 | E59: 277.99 | F59: 222.39 | G59: 277.99 | H59: 222.39 | M59: 286 | N59: -63.61 | O59: 285.61 | P59: 285.61 | R59: 222 | S59: 222 | U59: 193 | V59: 29 | W59: 29
A60: 平和县 | B60: 1 | C60: 0 | D60: 0.8 | E60: 162.53 | F60: 130.03 | G60: 162.53 | H60: 130.03 | M60: 175 | N60: -44.97 | O60: 174.97 | P60: 174.97 | R60: 130 | S60: 130 | U60: 123 | V60: 7 | W60: 7
A61: 华安县 | B61: 1 | C61: 0 | D61: 0.8 | E61: 358.51 | F61: 286.81 | G61: 358.51 | H61: 286.81 | M61: 360 | N61: -73.19 | O61: 360.19 | P61: 360.19 | R61: 287 | S61: 287 | U61: 242 | V61: 45 | W61: 45
A62: 龙海区 | B62: 1 | C62: 0 | D62: 0.4 | E62: 267.96 | F62: 213.77 | G62: 267.96 | H62: 213.17 | I62: 1.50 | J62: 0.60 | M62: 142 | N62: 71.77 | O62: 142.23 | P62: 141.23 | Q62: 1 | R62: 214 | S62: 213 | T62: 1 | U62: 92 | V62: 122 | W62: 121 | X62: 1
A63: 漳州高新技术产业开发区 | B63: 0 | C63: 1 | D63: 0.4 | E63: 92.40 | F63: 36.96 | K63: 92.40 | L63: 36.96 | M63: 21 | N63: 15.96 | O63: 21.04 | P63: -15.96 | Q63: 37 | R63: 37 | T63: 37 | U63: 35 | V63: 2 | W63: -35 | X63: 37
A64: 漳州常山开发区 | B64: 0 | C64: 1 | D64: 0.8 | E64: 10.35 | F64: 8.28 | K64: 10.35 | L64: 8.28 | M64: 21 | N64: -12.72 | O64: 20.72 | P64: 12.72 | Q64: 8 | R64: 8 | T64: 8 | U64: 11 | V64: -3 | W64: -11 | X64: 8
A65: 漳州市台商投资区 | B65: 0 | C65: 1 | D65: 0.4 | E65: 27.50 | F65: 11.00 | K65: 27.50 | L65: 11.00 | M65: 13 | N65: -2.00 | O65: 13 | P65: 2 | Q65: 11 | R65: 11 | T65: 11 | U65: 10 | V65: 1 | W65: -10 | X65: 11
A66: 南平市 | B66: 10 | C66: 0 | D66: 8.00 | E66: 1209.96 | F66: 967.93 | G66: 1209.96 | H66: 967.93 | K66: 0.00 | L66: 0.00 | M66: 1682 | N66: -714.07 | O66: 1683.07 | P66: 1683.07 | Q66: 0 | R66: 969 | S66: 969 | T66: 0 | U66: 1054 | V66: -85 | W66: -85 | X66: 0
A67: 延平区 | B67: 1 | C67: 0 | D67: 0.8 | E67: 98.61 | F67: 78.88 | G67: 98.61 | H67: 78.88 | M67: 151 | N67: -72.12 | O67: 151.12 | P67: 151.12 | R67: 79 | S67: 79 | U67: 89 | V67: -10 | W67: -10
A68: 顺昌县 | B68: 1 | C68: 0 | D68: 0.8 | E68: 67.09 | F68: 53.67 | G68: 67.09 | H68: 53.67 | M68: 40 | N68: 13.67 | O68: 40.33 | P68: 40.33 | R68: 54 | S68: 54 | U68: 64 | V68: -10 | W68: -10
A69: 浦城县 | B69: 1 | C69: 0 | D69: 0.8 | E69: 84.80 | F69: 67.84 | G69: 84.80 | H69: 67.84 | M69: 181 | N69: -113.16 | O69: 181.16 | P69: 181.16 | R69: 68 | S69: 68 | U69: 93 | V69: -25 | W69: -25
A70: 光泽县 | B70: 1 | C70: 0 | D70: 0.8 | E70: 106.69 | F70: 85.35 | G70: 106.69 | H70: 85.35 | M70: 151 | N70: -65.65 | O70: 150.65 | P70: 150.65 | R70: 85 | S70: 85 | U70: 91 | V70: -6 | W70: -6
A71: 松溪县 | B71: 1 | C71: 0 | D71: 0.8 | E71: 49.58 | F71: 39.66 | G71: 49.58 | H71: 39.66 | M71: 58 | N71: -18.34 | O71: 58.34 | P71: 58.34 | R71: 40 | S71: 40 | U71: 39 | V71: 1 | W71: 1
A72: 政和县 | B72: 1 | C72: 0 | D72: 0.8 | E72: 100.35 | F72: 80.28 | G72: 100.35 | H72: 80.28 | M72: 119 | N72: -38.72 | O72: 118.72 | P72: 118.72 | R72: 80 | S72: 80 | U72: 80 | V72: 0 | W72: 0
A73: 邵武市 | B73: 1 | C73: 0 | D73: 0.8 | E73: 54.50 | F73: 43.60 | G73: 54.50 | H73: 43.60 | M73: 65 | N73: -21.40 | O73: 65.4 | P73: 65.4 | R73: 44 | S73: 44 | U73: 40 | V73: 4 | W73: 4
A74: 武夷山市 | B74: 1 | C74: 0 | D74: 0.8 | E74: 100.12 | F74: 80.09 | G74: 100.12 | H74: 80.09 | M74: 134 | N74: -53.91 | O74: 133.91 | P74: 133.91 | R74: 80 | S74: 80 | U74: 86 | V74: -6 | W74: -6
A75: 建瓯市 | B75: 1 | C75: 0 | D75: 0.8 | E75: 314.41 | F75: 251.52 | G75: 314.41 | H75: 251.52 | M75: 490 | N75: -238.48 | O75: 490.48 | P75: 490.48 | R75: 252 | S75: 252 | U75: 287 | V75: -35 | W75: -35
A76: 建阳区 | B76: 1 | C76: 0 | D76: 0.8 | E76: 233.81 | F76: 187.04 | G76: 233.81 | H76: 187.04 | M76: 293 | N76: -105.96 | O76: 292.96 | P76: 292.96 | R76: 187 | S76: 187 | U76: 185 | V76: 2 | W76: 2
A77: 龙岩市 | B77: 7 | C77: 0 | D77: 5.20 | E77: 3186.62 | F77: 2528.36 | G77: 3186.62 | H77: 2478.66 | I77: 88.26 | J77: 49.70 | M77: 3183 | N77: -654.64 | O77: 3183.64 | P77: 3133.64 | Q77: 50 | R77: 2529 | S77: 2479 | T77: 50 | U77: 2172 | V77: 357 | W77: 307 | X77: 50
A78: 新罗区 | B78: 1 | C78: 0 | D78: 0.4 | E78: 127.58 | F78: 81.15 | G78: 127.58 | H78: 60.25 | I78: 52.26 | J78: 20.90 | M78: 68 | N78: 13.15 | O78: 67.85 | P78: 46.85 | Q78: 21 | R78: 81 | S78: 60 | T78: 21 | U78: 48 | V78: 33 | W78: 12 | X78: 21
A79: 长汀县 | B79: 1 | C79: 0 | D79: 0.8 | E79: 537.04 | F79: 429.63 | G79: 537.04 | H79: 429.63 | J79: 0.00 | M79: 550 | N79: -120.37 | O79: 550.37 | P79: 550.37 | R79: 430 | S79: 430 | U79: 371 | V79: 59 | W79: 59 | X79: 0
A80: 永定区 | B80: 1 | C80: 0 | D80: 0.8 | E80: 906.51 | F80: 725.20 | G80: 906.51 | H80: 696.40 | I80: 36.00 | J80: 28.80 | M80: 837 | N80: -111.80 | O80: 836.8 | P80: 807.8 | Q80: 29 | R80: 725 | S80: 696 | T80: 29 | U80: 606 | V80: 119 | W80: 90 | X80: 29
A81: 上杭县 | B81: 1 | C81: 0 | D81: 0.8 | E81: 744.52 | F81: 595.61 | G81: 744.52 | H81: 595.61 | M81: 760 | N81: -164.39 | O81: 760.39 | P81: 760.39 | R81: 596 | S81: 596 | U81: 522 | V81: 74 | W81: 74 | X81: 0
A82: 武平县 | B82: 1 | C82: 0 | D82: 0.8 | E82: 438.95 | F82: 351.16 | G82: 438.95 | H82: 351.16 | M82: 500 | N82: -148.84 | O82: 499.84 | P82: 499.84 | R82: 351 | S82: 351 | U82: 324 | V82: 27 | W82: 27 | X82: 0
A83: 连城县 | B83: 1 | C83: 0 | D83: 0.8 | E83: 144.54 | F83: 115.63 | G83: 144.54 | H83: 115.63 | M83: 168 | N83: -52.37 | O83: 168.37 | P83: 168.37 | R83: 116 | S83: 116 | U83: 104 | V83: 12 | W83: 12 | X83: 0
A84: 漳平市 | B84: 1 | C84: 0 | D84: 0.8 | E84: 287.48 | F84: 229.98 | G84: 287.48 | H84: 229.98 | M84: 300 | N84: -70.02 | O84: 300.02 | P84: 300.02 | R84: 230 | S84: 230 | U84: 197 | V84: 33 | W84: 33 | X84: 0
A85: 宁德市 | B85: 9 | C85: 1 | D85: 7.80 | E85: 1230.55 | F85: 970.13 | G85: 1159.05 | H85: 917.40 | I85: 12.29 | J85: 9.83 | K85: 71.50 | L85: 42.90 | M85: 1294 | N85: -323.87 | O85: 1292.87 | P85: 1239.87 | Q85: 53 | R85: 969 | S85: 916 | T85: 53 | U85: 869 | V85: 100 | W85: 47 | X85: 53
A86: 宁德市本级 | B86: 0 | C86: 1 | D86: 0.6 | E86: 71.50 | F86: 42.90 | K86: 71.50 | L86: 42.90 | M86: 48 | N86: -5.10 | O86: 48.1 | P86: 5.1 | Q86: 43 | R86: 43 | T86: 43 | U86: 35 | V86: 8 | W86: -35 | X86: 43
A87: 蕉城区 | B87: 1 | C87: 0 | D87: 0.8 | E87: 55.97 | F87: 44.77 | G87: 55.97 | H87: 34.94 | I87: 12.29 | J87: 9.83 | M87: 65 | N87: -20.23 | O87: 65.23 | P87: 55.23 | Q87: 10 | R87: 45 | S87: 35 | T87: 10 | U87: 44 | V87: 1 | W87: -9 | X87: 10
A88: 霞浦县 | B88: 1 | C88: 0 | D88: 0.8 | E88: 207.52 | F88: 166.01 | G88: 207.52 | H88: 166.01 | M88: 250 | N88: -83.99 | O88: 249.99 | P88: 249.99 | R88: 166 | S88: 166 | U88: 154 | V88: 12 | W88: 12
A89: 古田县 | B89: 1 | C89: 0 | D89: 0.8 | E89: 253.85 | F89: 203.08 | G89: 253.85 | H89: 203.08 | M89: 290 | N89: -86.92 | O89: 289.92 | P89: 289.92 | R89: 203 | S89: 203 | U89: 195 | V89: 8 | W89: 8
A90: 屏南县 | B90: 1 | C90: 0 | D90: 0.8 | E90: 100.14 | F90: 80.11 | G90: 100.14 | H90: 80.11 | M90: 110 | N90: -29.89 | O90: 109.89 | P90: 109.89 | R90: 80 | S90: 80 | U90: 78 | V90: 2 | W90: 2
A91: 寿宁县 | B91: 1 | C91: 0 | D91: 0.8 | E91: 29.24 | F91: 23.39 | G91: 29.24 | H91: 23.39 | M91: 15 | N91: 8.39 | O91: 14.61 | P91: 14.61 | R91: 23 | S91: 23 | U91: 24 | V91: -1 | W91: -1
A92: 周宁县 | B92: 1 | C92: 0 | D92: 0.8 | E92: 25.37 | F92: 20.29 | G92: 25.37 | H92: 20.29 | M92: 20 | N92: 0.29 | O92: 19.71 | P92: 19.71 | R92: 20 | S92: 20 | U92: 19 | V92: 1 | W92: 1
A93: 柘荣县 | B93: 1 | C93: 0 | D93: 0.8 | E93: 51.57 | F93: 41.26 | G93: 51.57 | H93: 41.26 | M93: 53 | N93: -11.74 | O93: 52.74 | P93: 52.74 | R93: 41 | S93: 41 | U93: 33 | V93: 8 | W93: 8
A94: 福安市 | B94: 1 | C94: 0 | D94: 0.8 | E94: 349.18 | F94: 279.35 | G94: 349.18 | H94: 279.35 | M94: 350 | N94: -70.65 | O94: 349.65 | P94: 349.65 | R94: 279 | S94: 279 | U94: 225 | V94: 54 | W94: 54
A95: 福鼎市 | B95: 1 | C95: 0 | D95: 0.8 | E95: 86.21 | F95: 68.97 | G95: 86.21 | H95: 68.97 | M95: 93 | N95: -24.03 | O95: 93.03 | P95: 93.03 | R95: 69 | S95: 69 | U95: 62 | V95: 7 | W95: 7
A96: 平潭综合实验区 | B96: 1 | C96: 0 | D96: 0.8 | E96: 27.43 | F96: 21.95 | G96: 27.43 | H96: 21.95 | M96: 37 | N96: -15.05 | O96: 37.05 | P96: 37.05 | R96: 22 | S96: 22 | U96: 25 | V96: -3 | W96: -3

Sheet 附件4
A1: 附件4
A2: 2025年义务教育学校家庭经济困难学生生活补助专项资金安排表
A3: 单位:万元
A4: 市、县、区名称 | B4: 2024年结算 | D4: 闽财教指〔2024〕30号已下达2024年资金 | E4: 结算2024年资金（负数为追减资金） | F4: 2025年预算数 | G4: 2025年应下达资金 | H4: 闽财教指〔2024〕87号提前下达 | I4: 本次实际下达资金
B5: 总计 | C5: 其中：省级 | I5: 合计 | J5: 中央资金 | K5: 省级下达
A6: 全省合计 | B6: 10206.66 | C6: 6609.02 | D6: 7048 | E6: -438.98 | F6: 6688.77 | G6: 6249.79 | H6: 4993 | I6: 1256.79 | J6: 443 | K6: 813.79
A7: 福州市 | B7: 1024.11 | C7: 430.34 | D7: 466 | E7: -35.66 | F7: 436.77 | G7: 401.11 | H7: 330 | I7: 71.11 | J7: 24 | K7: 47.11
A8: 福州市本级 | B8: 28.13 | C8: 5.63 | D8: 6 | E8: -0.37 | F8: 6.00 | G8: 5.63 | H8: 4 | I8: 1.63 | J8: 1 | K8: 0.63
A9: 鼓楼区 | B9: 15.17 | C9: 3.03 | D9: 5 | E9: -1.97 | F9: 3.97 | G9: 2.00 | H9: 2 | I9: 0.00 | J9: 0 | K9: 0
A10: 台江区 | B10: 13.42 | C10: 2.69 | D10: 3 | E10: -0.31 | F10: 3.00 | G10: 2.69 | H10: 2 | I10: 0.69 | J10: 0 | K10: 0.69
A11: 仓山区 | B11: 97.16 | C11: 19.43 | D11: 19 | E11: 0.43 | F11: 19.00 | G11: 19.43 | H11: 14 | I11: 5.43 | J11: 2 | K11: 3.43
A12: 马尾区 | B12: 28.06 | C12: 5.61 | D12: 7 | E12: -1.39 | F12: 6.00 | G12: 4.61 | H12: 4 | I12: 0.61 | J12: 0 | K12: 0.61
A13: 晋安区 | B13: 68.05 | C13: 13.61 | D13: 16 | E13: -2.39 | F13: 14.00 | G13: 11.61 | H13: 11 | I13: 0.61 | J13: 0 | K13: 0.61
A14: 闽侯县 | B14: 120.7 | C14: 43.78 | D14: 46 | E14: -2.22 | F14: 44.00 | G14: 41.78 | H14: 33 | I14: 8.78 | J14: 3 | K14: 5.78
A15: 连江县 | B15: 122.19 | C15: 68.79 | D15: 72 | E15: -3.21 | F15: 69.00 | G15: 65.79 | H15: 51 | I15: 14.79 | J15: 5 | K15: 9.79
A16: 罗源县 | B16: 61.85 | C16: 39.42 | D16: 42 | E16: -2.58 | F16: 39.00 | G16: 36.42 | H16: 30 | I16: 6.42 | J16: 2 | K16: 4.42
A17: 闽清县 | B17: 66.8 | C17: 50.98 | D17: 49 | E17: 1.98 | F17: 51.00 | G17: 52.98 | H17: 38 | I17: 14.98 | J17: 5 | K17: 9.98
A18: 永泰县 | B18: 70.08 | C18: 56.71 | D18: 58 | E18: -1.29 | F18: 57.00 | G18: 55.71 | H18: 45 | I18: 10.71 | J18: 4 | K18: 6.71
A19: 福清市 | B19: 202.2 | C19: 73.42 | D19: 84 | E19: -10.58 | F19: 73.00 | G19: 62.42 | H19: 56 | I19: 6.42 | J19: 2 | K19: 4.42
A20: 长乐区 | B20: 108.12 | C20: 39.2 | D20: 49 | E20: -9.80 | F20: 43.80 | G20: 34.00 | H20: 34 | I20: 0.00 | J20: 0 | K20: 0
A21: 高新区管委会 | B21: 22.18 | C21: 8.04 | D21: 10 | E21: -1.96 | F21: 8.00 | G21: 6.04 | H21: 6 | I21: 0.04 | J21: 0 | K21: 0.04
A22: 莆田市 | B22: 878.04 | C22: 583.91 | D22: 599 | E22: -15.09 | F22: 583.00 | G22: 567.91 | H22: 425 | I22: 142.91 | J22: 49 | K22: 93.91
A23: 莆田市本级 | B23: 24.38 | C23: 14.63 | D23: 0 | E23: 14.63 | F23: 15.00 | G23: 29.63 | H23: 0 | I23: 29.63 | J23: 10 | K23: 19.63
A24: 城厢区 | B24: 98.96 | C24: 59.37 | D24: 60 | E24: -0.63 | F24: 59.00 | G24: 58.37 | H24: 43 | I24: 15.37 | J24: 5 | K24: 10.37
A25: 涵江区 | B25: 110.62 | C25: 66.37 | D25: 70 | E25: -3.63 | F25: 66.00 | G25: 62.37 | H25: 48 | I25: 14.37 | J25: 5 | K25: 9.37
A26: 荔城区 | B26: 126.27 | C26: 75.76 | D26: 75 | E26: 0.76 | F26: 76.00 | G26: 76.76 | H26: 55 | I26: 21.76 | J26: 8 | K26: 13.76
A27: 秀屿区 | B27: 195.82 | C27: 117.49 | D27: 130 | E27: -12.51 | F27: 117.00 | G27: 104.49 | H27: 89 | I27: 15.49 | J27: 5 | K27: 10.49
A28: 湄洲岛管委会 | B28: 10.01 | C28: 6 | D28: 7 | E28: -1.00 | F28: 6.00 | G28: 5.00 | H28: 5 | I28: 0.00 | J28: 0 | K28: 0
A29: 北岸管委会 | B29: 26.41 | C29: 15.84 | D29: 18 | E29: -2.16 | F29: 16.00 | G29: 13.84 | H29: 13 | I29: 0.84 | J29: 0 | K29: 0.84
A30: 仙游县 | B30: 285.57 | C30: 228.45 | D30: 239 | E30: -10.55 | F30: 228.00 | G30: 217.45 | H30: 172 | I30: 45.45 | J30: 16 | K30: 29.45
A31: 三明市 | B31: 905.91 | C31: 705.58 | D31: 748 | E31: -42.42 | F31: 717.36 | G31: 674.94 | H31: 537 | I31: 137.94 | J31: 49 | K31: 88.94
A32: 三明市本级 | B32: 6.84 | C32: 4.34 | D32: 2 | E32: 2.34 | F32: 4.00 | G32: 6.34 | H32: 2 | I32: 4.34 | J32: 2 | K32: 2.34
A33: 三元区 | B33: 53.7 | C33: 42.96 | D33: 45 | E33: -2.04 | F33: 43.00 | G33: 40.96 | H33: 32 | I33: 8.96 | J33: 3 | K33: 5.96
A34: 明溪县 | B34: 37.37 | C34: 30.23 | D34: 33 | E34: -2.77 | F34: 30.00 | G34: 27.23 | H34: 23 | I34: 4.23 | J34: 1 | K34: 3.23
A35: 清流县 | B35: 62.11 | C35: 50.25 | D35: 58 | E35: -7.75 | F35: 50.00 | G35: 42.25 | H35: 40 | I35: 2.25 | J35: 1 | K35: 1.25
A36: 宁化县 | B36: 142.95 | C36: 115.65 | D36: 121 | E36: -5.35 | F36: 116.00 | G36: 110.65 | H36: 89 | I36: 21.65 | J36: 8 | K36: 13.65
A37: 大田县 | B37: 170.82 | C37: 139.81 | D37: 142 | E37: -2.19 | F37: 140.00 | G37: 137.81 | H37: 104 | I37: 33.81 | J37: 12 | K37: 21.81
A38: 尤溪县 | B38: 131.82 | C38: 106.67 | D38: 107 | E38: -0.33 | F38: 107.00 | G38: 106.67 | H38: 80 | I38: 26.67 | J38: 9 | K38: 17.67
A39: 沙县区 | B39: 63.29 | C39: 50.63 | D39: 54 | E39: -3.37 | F39: 51.00 | G39: 47.63 | H39: 39 | I39: 8.63 | J39: 3 | K39: 5.63
A40: 将乐县 | B40: 48.3 | C40: 38.64 | D40: 54 | E40: -15.36 | F40: 50.36 | G40: 35.00 | H40: 35 | I40: 0.00 | J40: 0 | K40: 0
A41: 泰宁县 | B41: 52.73 | C41: 43.15 | D41: 45 | E41: -1.85 | F41: 43.00 | G41: 41.15 | H41: 32 | I41: 9.15 | J41: 3 | K41: 6.15
A42: 建宁县 | B42: 57.61 | C42: 46.09 | D42: 49 | E42: -2.91 | F42: 46.00 | G42: 43.09 | H42: 35 | I42: 8.09 | J42: 3 | K42: 5.09
A43: 永安市 | B43: 78.37 | C43: 37.16 | D43: 38 | E43: -0.84 | F43: 37.00 | G43: 36.16 | H43: 26 | I43: 10.16 | J43: 4 | K43: 6.16
A44: 泉州市 | B44: 2403.44 | C44: 1110.45 | D44: 1144 | E44: -33.55 | F44: 1116.93 | G44: 1083.38 | H44: 847 | I44: 236.38 | J44: 87 | K44: 149.38
A45: 泉州市本级 | B45: 10.33 | C45: 2.07 | D45: 8 | E45: -5.93 | F45: 8.93 | G45: 3.00 | H45: 3 | I45: 0.00 | J45: 0 | K45: 0
A46: 鲤城区 | B46: 70.44 | C46: 14.09 | D46: 15 | E46: -0.91 | F46: 14.00 | G46: 13.09 | H46: 11 | I46: 2.09 | J46: 1 | K46: 1.09
A47: 丰泽区 | B47: 61.2 | C47: 12.24 | D47: 13 | E47: -0.76 | F47: 12.00 | G47: 11.24 | H47: 9 | I47: 2.24 | J47: 1 | K47: 1.24
A48: 洛江区 | B48: 52.55 | C48: 10.51 | D48: 11 | E48: -0.49 | F48: 11.00 | G48: 10.51 | H48: 8 | I48: 2.51 | J48: 1 | K48: 1.51
A49: 泉港区 | B49: 89.33 | C49: 17.86 | D49: 20 | E49: -2.14 | F49: 18.00 | G49: 15.86 | H49: 13 | I49: 2.86 | J49: 1 | K49: 1.86
A50: 惠安县 | B50: 134.28 | C50: 58.69 | D50: 59 | E50: -0.31 | F50: 59.00 | G50: 58.69 | H50: 43 | I50: 15.69 | J50: 6 | K50: 9.69
A51: 安溪县 | B51: 442.95 | C51: 358.41 | D51: 361 | E51: -2.59 | F51: 358.00 | G51: 355.41 | H51: 295 | I51: 60.41 | J51: 21 | K51: 39.41
A52: 永春县 | B52: 111.31 | C52: 91.1 | D52: 97 | E52: -5.90 | F52: 91.00 | G52: 85.10 | H52: 70 | I52: 15.10 | J52: 5 | K52: 10.1
A53: 德化县 | B53: 89.79 | C53: 72.67 | D53: 72 | E53: 0.67 | F53: 73.00 | G53: 73.67 | H53: 51 | I53: 22.67 | J53: 8 | K53: 14.67
A54: 石狮市 | B54: 157.44 | C54: 31.49 | D54: 34 | E54: -2.51 | F54: 31.00 | G54: 28.49 | H54: 23 | I54: 5.49 | J54: 2 | K54: 3.49
A55: 晋江市 | B55: 660.43 | C55: 132.09 | D55: 137 | E55: -4.91 | F55: 132.00 | G55: 127.09 | H55: 98 | I55: 29.09 | J55: 10 | K55: 19.09
A56: 南安市 | B56: 440.02 | C56: 280.36 | D56: 287 | E56: -6.64 | F56: 280.00 | G56: 273.36 | H56: 203 | I56: 70.36 | J56: 29 | K56: 41.36
A57: 泉州市台商投资区 | B57: 74.83 | C57: 27.16 | D57: 30 | E57: -2.84 | F57: 27.00 | G57: 24.16 | H57: 20 | I57: 4.16 | J57: 1 | K57: 3.16
A58: 泉州经济技术开发区 | B58: 8.54 | C58: 1.71 | D58: 0 | E58: 1.71 | F58: 2.00 | G58: 3.71 | H58: 0 | I58: 3.71 | J58: 1 | K58: 2.71
A59: 漳州市 | B59: 1427.21 | C59: 979.15 | D59: 1086 | E59: -106.85 | F59: 1017.62 | G59: 910.77 | H59: 719 | I59: 191.77 | J59: 68 | K59: 123.77
A60: 漳州市本级 | B60: 22.05 | C60: 8.82 | D60: 13 | E60: -4.18 | F60: 12.18 | G60: 8.00 | H60: 8 | I60: 0.00 | J60: 0 | K60: 0
A61: 芗城区 | B61: 79.74 | C61: 31.89 | D61: 35 | E61: -3.11 | F61: 32.00 | G61: 28.89 | H61: 23 | I61: 5.89 | J61: 2 | K61: 3.89
A62: 龙文区 | B62: 50.72 | C62: 20.29 | D62: 19 | E62: 1.29 | F62: 20.00 | G62: 21.29 | H62: 14 | I62: 7.29 | J62: 3 | K62: 4.29
A63: 云霄县 | B63: 137.62 | C63: 111.36 | D63: 115 | E63: -3.64 | F63: 111.00 | G63: 107.36 | H63: 82 | I63: 25.36 | J63: 9 | K63: 16.36
A64: 漳浦县 | B64: 190.61 | C64: 145.41 | D64: 155 | E64: -9.59 | F64: 145.00 | G64: 135.41 | H64: 106 | I64: 29.41 | J64: 10 | K64: 19.41
A65: 漳州市古雷港经济开发区 | B65: 43.28 | C65: 31.38 | D65: 34 | E65: -2.62 | F65: 31.00 | G65: 28.38 | H65: 21 | I65: 7.38 | J65: 3 | K65: 4.38
A66: 诏安县 | B66: 212.97 | C66: 172.33 | D66: 180 | E66: -7.67 | F66: 172.00 | G66: 164.33 | H66: 129 | I66: 35.33 | J66: 12 | K66: 23.33
A67: 长泰区 | B67: 96.08 | C67: 57.65 | D67: 62 | E67: -4.35 | F67: 58.00 | G67: 53.65 | H67: 41 | I67: 12.65 | J67: 4 | K67: 8.65
A68: 东山县 | B68: 32.45 | C68: 25.97 | D68: 69 | E68: -43.03 | F68: 61.03 | G68: 18.00 | H68: 18 | I68: 0.00 | J68: 0 | K68: 0
A69: 南靖县 | B69: 86.08 | C69: 69.64 | D69: 75 | E69: -5.36 | F69: 70.00 | G69: 64.64 | H69: 51 | I69: 13.64 | J69: 5 | K69: 8.64
A70: 平和县 | B70: 202.68 | C70: 164.02 | D70: 175 | E70: -10.98 | F70: 164.00 | G70: 153.02 | H70: 123 | I70: 30.02 | J70: 11 | K70: 19.02
A71: 华安县 | B71: 69.67 | C71: 56.99 | D71: 62 | E71: -5.01 | F71: 57.00 | G71: 51.99 | H71: 44 | I71: 7.99 | J71: 3 | K71: 4.99
A72: 龙海区 | B72: 99.81 | C72: 39.93 | D72: 46 | E72: -6.07 | F72: 40.00 | G72: 33.93 | H72: 29 | I72: 4.93 | J72: 2 | K72: 2.93
A73: 漳州高新技术产业开发区 | B73: 38.39 | C73: 15.35 | D73: 17 | E73: -1.65 | F73: 15.00 | G73: 13.35 | H73: 11 | I73: 2.35 | J73: 1 | K73: 1.35
A74: 漳州常山开发区 | B74: 6.42 | C74: 4.66 | D74: 6 | E74: -1.34 | F74: 5.00 | G74: 3.66 | H74: 3 | I74: 0.66 | J74: 0 | K74: 0.66
A75: 漳州招商局经济技术开发区 | B75: 3.97 | C75: 1.59 | D75: 3 | E75: -1.41 | F75: 2.41 | G75: 1.00 | H75: 1 | I75: 0.00 | J75: 0 | K75: 0
A76: 漳州台商投资区 | B76: 54.67 | C76: 21.87 | D76: 20 | E76: 1.87 | F76: 22.00 | G76: 23.87 | H76: 15 | I76: 8.87 | J76: 3 | K76: 5.87
A77: 南平市 | B77: 831.40 | C77: 669.87 | D77: 712 | E77: -42.13 | F77: 671.28 | G77: 629.15 | H77: 526 | I77: 103.15 | J77: 36 | K77: 67.15
A78: 南平市本级 | B78: 7.41 | C78: 4.72 | D78: 6 | E78: -1.28 | F78: 5.28 | G78: 4.00 | H78: 4 | I78: 0.00 | J78: 0 | K78: 0
A79: 延平区 | B79: 77.63 | C79: 62.12 | D79: 72 | E79: -9.88 | F79: 62.00 | G79: 52.12 | H79: 52 | I79: 0.12 | J79: 0 | K79: 0.12
A80: 顺昌县 | B80: 46.82 | C80: 37.88 | D80: 42 | E80: -4.12 | F80: 38.00 | G80: 33.88 | H80: 30 | I80: 3.88 | J80: 1 | K80: 2.88
A81: 浦城县 | B81: 107.18 | C81: 86.72 | D81: 90 | E81: -3.28 | F81: 87.00 | G81: 83.72 | H81: 72 | I81: 11.72 | J81: 4 | K81: 7.72
A82: 光泽县 | B82: 49.47 | C82: 40.03 | D82: 44 | E82: -3.97 | F82: 40.00 | G82: 36.03 | H82: 31 | I82: 5.03 | J82: 2 | K82: 3.03
A83: 松溪县 | B83: 79.98 | C83: 64.73 | D83: 68 | E83: -3.27 | F83: 65.00 | G83: 61.73 | H83: 48 | I83: 13.73 | J83: 5 | K83: 8.73
A84: 政和县 | B84: 111.07 | C84: 89.88 | D84: 96 | E84: -6.12 | F84: 90.00 | G84: 83.88 | H84: 70 | I84: 13.88 | J84: 5 | K84: 8.88
A85: 邵武市 | B85: 61.77 | C85: 49.98 | D85: 51 | E85: -1.02 | F85: 50.00 | G85: 48.98 | H85: 37 | I85: 11.98 | J85: 4 | K85: 7.98
A86: 武夷山市 | B86: 61.47 | C86: 49.74 | D86: 54 | E86: -4.26 | F86: 50.00 | G86: 45.74 | H86: 38 | I86: 7.74 | J86: 3 | K86: 4.74
A87: 建瓯市 | B87: 130.76 | C87: 105.8 | D87: 108 | E87: -2.20 | F87: 106.00 | G87: 103.80 | H87: 84 | I87: 19.80 | J87: 7 | K87: 12.8
A88: 建阳区 | B88: 97.84 | C88: 78.27 | D88: 81 | E88: -2.73 | F88: 78.00 | G88: 75.27 | H88: 60 | I88: 15.27 | J88: 5 | K88: 10.27
A89: 龙岩市 | B89: 1410.10 | C89: 1077.27 | D89: 1189 | E89: -111.73 | F89: 1092.81 | G89: 981.08 | H89: 818 | I89: 163.08 | J89: 57 | K89: 106.08
A90: 龙岩市本级 | B90: 12.21 | C90: 5.34 | D90: 5 | E90: 0.34 | F90: 5.00 | G90: 5.34 | H90: 4 | I90: 1.34 | J90: 0 | K90: 1.34
A91: 新罗区 | B91: 147.39 | C91: 64.48 | D91: 72 | E91: -7.52 | F91: 64.00 | G91: 56.48 | H91: 48 | I91: 8.48 | J91: 3 | K91: 5.48
A92: 长汀县 | B92: 300.52 | C92: 243.19 | D92: 305 | E92: -61.81 | F92: 258.81 | G92: 197.00 | H92: 197 | I92: 0.00 | J92: 0 | K92: 0
A93: 永定区 | B93: 247.09 | C93: 197.67 | D93: 205 | E93: -7.33 | F93: 198.00 | G93: 190.67 | H93: 149 | I93: 41.67 | J93: 15 | K93: 26.67
A94: 上杭县 | B94: 240.81 | C94: 192.65 | D94: 201 | E94: -8.35 | F94: 193.00 | G94: 184.65 | H94: 142 | I94: 42.65 | J94: 15 | K94: 27.65
A95: 武平县 | B95: 187.84 | C95: 152.01 | D95: 164 | E95: -11.99 | F95: 152.00 | G95: 140.01 | H95: 114 | I95: 26.01 | J95: 9 | K95: 17.01
A96: 连城县 | B96: 137.32 | C96: 111.13 | D96: 118 | E96: -6.87 | F96: 111.00 | G96: 104.13 | H96: 81 | I96: 23.13 | J96: 8 | K96: 15.13
A97: 漳平市 | B97: 136.92 | C97: 110.8 | D97: 119 | E97: -8.20 | F97: 111.00 | G97: 102.80 | H97: 83 | I97: 19.80 | J97: 7 | K97: 12.8
A98: 宁德市 | B98: 1247.69 | C98: 989.44 | D98: 1037 | E98: -47.56 | F98: 990.00 | G98: 942.44 | H98: 744 | I98: 198.44 | J98: 69 | K98: 129.44
A99: 宁德市本级 | B99: 15.16 | C99: 8.57 | D99: 10 | E99: -1.43 | F99: 9.00 | G99: 7.57 | H99: 6 | I99: 1.57 | J99: 1 | K99: 0.57
A100: 蕉城区 | B100: 131.92 | C100: 95.75 | D100: 100 | E100: -4.25 | F100: 96.00 | G100: 91.75 | H100: 71 | I100: 20.75 | J100: 7 | K100: 13.75
A101: 东侨开发区 | B101: 13.35 | C101: 7.5 | D101: 10 | E101: -2.50 | F101: 8.00 | G101: 5.50 | H101: 5 | I101: 0.50 | J101: 0 | K101: 0.5
A102: 霞浦县 | B102: 216.22 | C102: 172.98 | D102: 175 | E102: -2.02 | F102: 173.00 | G102: 170.98 | H102: 128 | I102: 42.98 | J102: 15 | K102: 27.98
A103: 古田县 | B103: 103.48 | C103: 83.74 | D103: 96 | E103: -12.26 | F103: 84.00 | G103: 71.74 | H103: 64 | I103: 7.74 | J103: 3 | K103: 4.74
A104: 屏南县 | B104: 94.64 | C104: 77.45 | D104: 80 | E104: -2.55 | F104: 77.00 | G104: 74.45 | H104: 57 | I104: 17.45 | J104: 6 | K104: 11.45
A105: 寿宁县 | B105: 126.04 | C105: 103.18 | D105: 105 | E105: -1.82 | F105: 103.00 | G105: 101.18 | H105: 79 | I105: 22.18 | J105: 8 | K105: 14.18
A106: 周宁县 | B106: 84.74 | C106: 69.35 | D106: 73 | E106: -3.65 | F106: 69.00 | G106: 65.35 | H106: 53 | I106: 12.35 | J106: 4 | K106: 8.35
A107: 柘荣县 | B107: 65.52 | C107: 53.62 | D107: 58 | E107: -4.38 | F107: 54.00 | G107: 49.62 | H107: 41 | I107: 8.62 | J107: 3 | K107: 5.62
A108: 福安市 | B108: 262.73 | C108: 210.18 | D108: 218 | E108: -7.82 | F108: 210.00 | G108: 202.18 | H108: 162 | I108: 40.18 | J108: 14 | K108: 26.18
A109: 福鼎市 | B109: 133.89 | C109: 107.12 | D109: 112 | E109: -4.88 | F109: 107.00 | G109: 102.12 | H109: 78 | I109: 24.12 | J109: 8 | K109: 16.12
A110: 平潭综合实验区 | B110: 78.76 | C110: 63.01 | D110: 67 | E110: -3.99 | F110: 63.00 | G110: 59.01 | H110: 47 | I110: 12.01 | J110: 4 | K110: 8.01

Sheet 附件5
A1: 附件5
A2: 专项转移支付绩效目标表 （ 2025年度）
A3: 项目名称 | D3: 城乡义务教育补助经费
A4: 主管部门（单位）名称及部门 预算编码 | D4: 省教育厅 | F4: 补助区域 | G4: 各设区市
A5: 资金情况 （万元） | D5: 资金总额 | E5: 262226.04
D6: 其中：财政拨款 | E6: 262226.04
D7: 其他资金
A8: 总体目标 | B8: 目标1：落实城乡统一、重在农村的义务教育经费保障机制。生均公用经费、家庭经济困难学生生活补助费按省定标准落实，构建城乡一体、资源配置均衡、保障水平稳步提升、管理规范有效的义务教育经费补助机制。 目标2：实施农村义务教育学生营养改善计划。营养膳食生均补助标准按照省定标准落实，提升农村学生身体素质。
A9: 绩 效 指 标 | B9: 一级 指标 | C9: 二级指标 | D9: 三级指标 | E9: 指标解释 | F9: 区域目标值
F10: 福州市 | G10: 莆田市 | H10: 三明市 | I10: 泉州市 | J10: 漳州市 | K10: 南平市 | L10: 龙岩市 | M10: 宁德市 | N10: 平潭综合实验区
B11: 成本 指标 | C11: 经济成本指标 | D11: 营养膳食生均补助标准 | E11: 5元/天 | F11: 5元/天 | G11: 5元/天 | H11: 5元/天 | I11: 5元/天 | J11: 5元/天 | K11: 5元/天 | L11: 5元/天 | M11: 5元/天 | N11: 5元/天
B12: 产 出 指 标 | C12: 数量指标 | D12: 生均公用经费 | E12: 不低于省定标准 | F12: 不低于省定标准
D13: 享受免费教科书政策的学生比例 | E13: 100% | F13: 100% | G13: 100% | H13: 100% | I13: 100% | J13: 100% | K13: 100% | L13: 100% | M13: 100% | N13: 100%
D14: 家庭经济困难学生享受生活补助政策比例 | E14: 100% | F14: 100% | G14: 100% | H14: 100% | I14: 100% | J14: 100% | K14: 100% | L14: 100% | M14: 100% | N14: 100%
D15: 农村寄宿生享受营改善计划比例 | E15: 100% | F15: 100% | G15: 100% | H15: 100% | I15: 100% | J15: 100% | K15: 100% | L15: 100% | M15: 100% | N15: 100%
C16: 质量指标 | D16: 教科书质量合格率 | E16: ≥97% | F16: ≥97% | G16: ≥97% | H16: ≥97% | I16: ≥97% | J16: ≥97% | K16: ≥97% | L16: ≥97% | M16: ≥97% | N16: ≥97%
D17: 营养改善计划食品安全达标率 | E17: 100% | F17: 100% | G17: 100% | H17: 100% | I17: 100% | J17: 100% | K17: 100% | L17: 100% | M17: 100% | N17: 100%
D18: 家庭经济困难学生生活补助发放准确率 | E18: 100% | F18: 100% | G18: 100% | H18: 100% | I18: 100% | J18: 100% | K18: 100% | L18: 100% | M18: 100% | N18: 100%
C19: 时效指标 | D19: 资金支出进度 | E19: 按序时进度 | F19: 按序时进度
B20: 效益 指标 | C20: 社会效益 指标 | D20: 农村学生身体素质 | E20: 提升 | F20: 提升 | G20: 提升 | H20: 提升 | I20: 提升 | J20: 提升 | K20: 提升 | L20: 提升 | M20: 提升 | N20: 提升
B21: 满意度 指标 | C21: 服务对象 满意度指标 | D21: 学校和老师满意度 | E21: ≥90% | F21: ≥90% | G21: ≥90% | H21: ≥90% | I21: ≥90% | J21: ≥90% | K21: ≥90% | L21: ≥90% | M21: ≥90% | N21: ≥90%
D22: 家长和学生满意度 | E22: ≥90% | F22: ≥90% | G22: ≥90% | H22: ≥90% | I22: ≥90% | J22: ≥90% | K22: ≥90% | L22: ≥90% | M22: ≥90% | N22: ≥90%
